Workbook

Sheet Volumen R01
A3: Grupo Crixuz Ingenieria y Construccion S.A.C.
D4: Cel: | E4: #942656792
D5: Correo: | E5: grupo_crixuz@hotmail.com
D6: G. General : | E6: Max J. Cardenas Alarcon
A7: Hoja de cálculo que se distribuye de manera condicional, dar el crédito a Crixuz Ingenieria y Construccion SAC, no se tienen restricciones adicionales
B10: ANALISIS Y DISEÑO DE RESERVORIOS RECTANGULARES - VOLUMEN DEL RESERVORIO
A12: 01 | B12: CÁLCULO DE LA POBLACION FUTURA
B14: Población Actual : | E14: Pa= | H14: habitantes | M14: Familias | P14: =+IFERROR(F14/K14,) -> 0.0 | R14: Miembros / familias
B16: Tasa crecimiento: | E16: r= | H16: % | L16: Periodo diseño : | O16: Tr= | R16: años
B18: Población futura: | E18: Pf = | F18: Pa*(1+ r/100)Tr | I18: = | J18: =+IFERROR(F14*(1+F16/100)^P16,) -> 0 | L18: habitantes
B19: =20+D15 -> 20
A20: 02 | B20: CÁLCULO DEL PROMEDIO DIARIO ANUAL (Pda)
E22: DOTACIÓN POR CLIMAS (Lps) | M22: Poblacion:
B23: POBLACIÓN | E23: FRIO | G23: TEMPLADO | I23: CALIDO | K23: K2 | M23: Clima: | W23: POBLACIÓN | X23: Frio | Y23: Templado | Z23: Cálido | AA23: K2
C24: < 2000 | E24: 50 | G24: 60 | I24: 70 | K24: 2.5 | M24: Dotación: | O24: =+IFERROR(INDEX(X24:Z27,MATCH(O22,W24:W27,0),MATCH(O23,X23:Z23,0)),) -> 0 | Q24: lts/hab./dia | W24: < 2000 | X24: 50 | Y24: 60 | Z24: 70 | AA24: 2.5
C25: 2000-10000 | E25: 120 | G25: 150 | I25: 150 | K25: 2.5 | M25: Nro Habit: | O25: =IFERROR(J18,) -> 0 | Q25: hab | W25: 2000-10000 | X25: 120 | Y25: 150 | Z25: 150 | AA25: 2.5
C26: 10000-50000 | E26: 150 | G26: 200 | I26: 200 | K26: 1.8 | W26: 10000-50000 | X26: 150 | Y26: 200 | Z26: 200 | AA26: 1.8
C27: > 50000 | E27: 200 | G27: 250 | I27: 250 | K27: 1.8 | M27: Pda = (Dot*N°Habot) / 86400 = | R27: =+IFERROR((O24*O25/86400),) -> 0.000 | T27: Lt/seg | W27: > 50000 | X27: 200 | Y27: 250 | Z27: 250 | AA27: 1.8
A29: 03 | B29: CÁLCULO DE LA DEMANDA EDUCATIVA
B31: Nivel secundario= | H31: Est.
B32: Nivel primario= | H32: Est.
B33: Nivel inicial= | H33: Est.
B35: Total= | F35: =IFERROR(+SUM(F31:F33),) -> 0 | H35: hab | L35: Demanda (RNE)= | Q35: L/hab/dia
I37: Pdb= | K37: =IFERROR(F35*O35/(24*3600),) -> 0.000 | M37: Lt/seg
A39: 04 | B39: CÁLCULO DE LA DEMANDA TOTAL
E41: Pd= | F41: Pda + Pdb | L41: Pd= | M41: =IFERROR(R27+K37,) -> 0.000 | O41: Lt/seg
A43: 05 | B43: CAUDAL MÁXIMO DIARIO (Qmax-diario)
E45: K1 = | J45: Qmax-d = Pd*K1 | O45: Perdidas :
F47: Qmax-diar = | I47: =IFERROR((M41)*F45,) -> 0.000 | K47: Lt/ Seg | M47: Sin considerar pérdidas
F48: Qmax-diar = | I48: =IFERROR(+I47+(I47*Q45),) -> 0.000 | K48: Lt/ Seg | M48: =+CONCATENATE("Con perdidas ",Q45*100,"%") -> Con perdidas 0%
A50: 06 | B50: CAUDAL MÁXIMO HORARIO (Qmax-horario)
B52: K2 = | D52: 1.80 | F52: > 10000 Habitantes | L52: K2 = | N52: 2.50 | P52: < 10000 Habitantes
J54: K2 = | K54: =IFERROR(+VLOOKUP(O22,W24:AA27,5,FALSE),) -> 0
H56: Qmax-hora = | K56: (K2* Qm) | M56: Lt/ Seg
H57: Qmax-hora = | K57: =IFERROR(M41*N52,) -> 0.00 | M57: Lt/ Seg
A59: 07 | B59: CÁLCULO DEL VOLUMEN DEL RESERVORIO (M3)
J61: Valmace = Vr + VR
B63: Donde:
D65: Vr = Volumen de Regulación | N65: VR = Volumen de Reserva
D66: Vr = | F66: x Qmd x 86.40 | N66: VR = | P66: x Qmd x 86.40
D68: Vr : | E68: =IFERROR((I48*E66)*86.4,) -> 0.00 | G68: m3 | N68: VR : | O68: =IFERROR((I48*O66)*86.4,) -> 0.00 | Q68: m3
I70: V. almace: | K70: =IFERROR(SUM(E68+O68),) -> 0.00 | M70: m3
C72: Intervalo : | G72: m3 | O72: V. diseño: | Q72: =IFERROR(+E72*(ROUNDUP(K70/E72,0)),) -> 0.00 | S72: m3
F74: =IFERROR(+CONCATENATE("Por lo tanto se Proyectara un Reservorio de ",Q72,"m3 de Almacenamiento"),) -> Por lo tanto se Proyectara un Reservorio de 0m3 de Almacenamiento
A76: 08 | B76: DIMENSIONES DEL RESERVORIO
C78: Volumen de diseño reserv. : | I78: V = | J78: =IFERROR(+Q72,) -> 0.00 | L78: m3
C80: Altura de agua en el reserv : | I80: h = | L80: m | O80: Intervalo : | S80: m3
C82: Longitud muro (cuadrado) : | I82: L = | J82: =IFERROR(Q80*(ROUNDUP(SQRT(J78/J80)/Q80,0)),) -> 0.00 | L82: m
C84: Volumen final del reservorio : | I84: V' = | J84: =IFERROR(+J82*J82*J80,) -> 0.00 | L84: m3

Sheet Volumen R02
A3: Grupo Crixuz Ingenieria y Construccion S.A.C.
F4: Cel: | G4: #942656792
F5: Correo: | G5: grupo_crixuz@hotmail.com
F6: G. General : | G6: Max J. Cardenas Alarcon
A7: Hoja de cálculo que se distribuye de manera condicional, dar el crédito a Crixuz Ingenieria y Construccion SAC, no se tienen restricciones adicionales
B10: ANALISIS Y DISEÑO DE RESERVORIOS RECTANGULARES - VOLUMEN DEL RESERVORIO
A12: 01 | B12: CAUDAL DE DEMANDA
D14: Demanda diaria : | H14: Qd= | K14: lt/seg | Q14: Demanda horaria : | U14: Qh= | X14: lt/seg
A16: 02 | B16: REGISTRO DE VARIACION HORARIA DURANTE EL DIA DE MAXIMO CONSUMO | V16: Insertar Filas : | Z16: =6+MATCH("xxx",A7:A80,0) -> 22
C18: VARIACIONES HORARIAS DEL MAXIMO CONSUMO
B19: N° | C19: 0 | D19: 1 | E19: 2 | F19: 3 | G19: 4 | H19: 5 | I19: 6 | J19: 7 | K19: 8 | L19: 9 | M19: 10 | N19: 11 | O19: 12 | P19: 13 | Q19: 14 | R19: 15 | S19: 16 | T19: 17 | U19: 18 | V19: 19 | W19: 20 | X19: 21 | Y19: 22 | Z19: 23 | AA19: 24
B20: =+ROW(A20)-19 -> 1 | AB20: --
B21: =+ROW(A21)-19 -> 2 | AB21: --
A22: xxx | B22: 3 | AB22: --
B23: MAX | C23: =+MAX(C20:C22) -> 0.0 | D23: 0.0 | E23: 0.0 | F23: 0.0 | G23: 0.0 | H23: 0.0 | I23: 0.0 | J23: 0.0 | K23: 0.0 | L23: 0.0 | M23: 0.0 | N23: 0.0 | O23: 0.0 | P23: 0.0 | Q23: 0.0 | R23: 0.0 | S23: 0.0 | T23: 0.0 | U23: 0.0 | V23: 0.0 | W23: 0.0 | X23: 0.0 | Y23: 0.0 | Z23: 0.0 | AA23: 0.0
A25: 03 | B25: CURVA DE VARIACIONES HORARIAS DEL DIA DE MAXIMO CONSUMO
W27: Consumo Maximo Horario
X29: Qmax= | Y29: =+MAX(C23:AA23) -> 0.00 | AA29: lt/seg | AD29: 0 | AE29: =+Y29 -> 0.00
AD30: 24 | AE30: =+Y29 -> 0.00
W31: Consumo Medio del Dia
X33: Qmax= | Y33: =+AVERAGE(C23:AA23) -> 0.00 | AA33: lt/seg | AD33: 0 | AE33: =+Y33 -> 0.00
AD34: 24 | AE34: =+Y33 -> 0.00
W35: Consumo Medio
X37: Qmax= | Y37: =+Y29-Y33 -> 0.00 | AA37: lt/seg | AD37: 0 | AE37: =+Y37 -> 0.00
AD38: 24 | AE38: =+Y37 -> 0.00
W39: Demanda
X41: Qd= | Y41: =+I14 -> 0.000 | AA41: lt/seg
A43: 04 | B43: CURVA DE CONSUMOS ACUMULADOS, OBTENIDO DE LA CURVA DE VARIACIONES HORARIAS
C45: Tiempo | E45: Consumo | G45: Volumen | I45: Vol. Acu. | K45: Cambio
C46: Horas | E46: lt/seg | G46: m3 | I46: m3 | K46: Pendient
C47: 0 | E47: =+AD47 -> 0.00 | G47: =+E47*60*60/1000 -> 0.000 | I47: =+G47 -> 0.0 | K47: =+AK47 -> 0.0 | AD47: =+TRANSPOSE(C23:AA23) -> 0.00 | AE47: 0 | AF47: =+I47 -> 0.000 | AG47: =+C47 -> 0 | AH47: =+AF47 -> 0.000 | AI47: =+IF(K47<=0,K47/MIN($K$47:$L$71),1+K47/MAX($K$47:$L$71)) ->  | AJ47: =+AG47 -> 0 | AK47: =+ROUND(I47-AH47,3) -> 0.000 | AL47: =+AJ47 -> 0 | AM47: =AH47-ABS($G$73) -> 0.000 | AN47: =+AJ47 -> 0 | AO47: =AH47+ABS($G$75) -> 0.000
C48: 1 | E48: =+AD48 -> 0.00 | G48: =+E48*60*60/1000 -> 0.000 | I48: =+G48+I47 -> 0.0 | K48: 0.0 | AD48: 0.00 | AE48: 24 | AF48: =+I71 -> 0.000 | AG48: =+C48 -> 1 | AH48: =+$AH$47+(($AH$71-$AH$47)*(AG48-$AG$47)/($AG$71-$AG$47)) -> 0.000 | AI48: =+IF(K48<=0,K48/MIN($K$47:$L$71),1+K48/MAX($K$47:$L$71)) ->  | AJ48: 1 | AK48: 0.000 | AL48: =+AJ48 -> 1 | AM48: 0.000 | AN48: =+AJ48 -> 1 | AO48: 0.000
C49: 2 | E49: 0.00 | G49: 0.000 | I49: =+G49+I48 -> 0.0 | K49: 0.0 | AD49: 0.00 | AG49: 2 | AH49: =+$AH$47+(($AH$71-$AH$47)*(AG49-$AG$47)/($AG$71-$AG$47)) -> 0.000 | AJ49: 2 | AK49: 0.000 | AL49: 2 | AM49: 0.000 | AN49: 2 | AO49: 0.000
C50: 3 | E50: 0.00 | G50: 0.000 | I50: 0.0 | K50: 0.0 | AD50: 0.00 | AE50: 0 | AF50: =+AM47 -> 0.000 | AG50: 3 | AH50: 0.000 | AJ50: 3 | AK50: 0.000 | AL50: 3 | AM50: 0.000 | AN50: 3 | AO50: 0.000
C51: 4 | E51: 0.00 | G51: 0.00 | I51: 0.0 | K51: 0.0 | AD51: 0.00 | AE51: 24 | AF51: =+AM71 -> 0.000 | AG51: 4 | AH51: 0.000 | AJ51: 4 | AK51: 0.000 | AL51: 4 | AM51: 0.000 | AN51: 4 | AO51: 0.000
C52: 5 | E52: 0.00 | G52: 0.00 | I52: 0.0 | K52: 0.0 | AD52: 0.00 | AG52: 5 | AH52: 0.000 | AJ52: 5 | AK52: 0.000 | AL52: 5 | AM52: 0.000 | AN52: 5 | AO52: 0.000
C53: 6 | E53: 0.00 | G53: 0.00 | I53: 0.0 | K53: 0.0 | AD53: 0.00 | AE53: 0 | AF53: =+AO47 -> 0.000 | AG53: 6 | AH53: 0.000 | AJ53: 6 | AK53: 0.000 | AL53: 6 | AM53: 0.000 | AN53: 6 | AO53: 0.000
C54: 7 | E54: 0.00 | G54: 0.00 | I54: 0.0 | K54: 0.0 | AD54: 0.00 | AE54: 24 | AF54: =+AO71 -> 0.000 | AG54: 7 | AH54: 0.000 | AJ54: 7 | AK54: 0.000 | AL54: 7 | AM54: 0.000 | AN54: 7 | AO54: 0.000
C55: 8 | E55: 0.00 | G55: 0.00 | I55: 0.0 | K55: 0.0 | AD55: 0.00 | AG55: 8 | AH55: 0.000 | AJ55: 8 | AK55: 0.000 | AL55: 8 | AM55: 0.000 | AN55: 8 | AO55: 0.000
C56: 9 | E56: 0.00 | G56: 0.00 | I56: 0.0 | K56: 0.0 | AD56: 0.00 | AE56: 0 | AF56: =+W73 -> 0.00 | AG56: 9 | AH56: 0.000 | AJ56: 9 | AK56: 0.000 | AL56: 9 | AM56: 0.000 | AN56: 9 | AO56: 0.000
C57: 10 | E57: 0.00 | G57: 0.00 | I57: 0.0 | K57: 0.0 | AD57: 0.00 | AE57: =+G77 -> 0 | AF57: =+AF56 -> 0.00 | AG57: 10 | AH57: 0.000 | AJ57: 10 | AK57: 0.000 | AL57: 10 | AM57: 0.000 | AN57: 10 | AO57: 0.000
C58: 11 | E58: 0.00 | G58: 0.00 | I58: 0.0 | K58: 0.0 | AD58: 0.00 | AE58: =+G77 -> 0 | AF58: =+W75 -> 0.00 | AG58: 11 | AH58: 0.000 | AJ58: 11 | AK58: 0.000 | AL58: 11 | AM58: 0.000 | AN58: 11 | AO58: 0.000
C59: 12 | E59: 0.00 | G59: 0.00 | I59: 0.0 | K59: 0.0 | AD59: 0.00 | AE59: 0 | AF59: =+AF58 -> 0.00 | AG59: 12 | AH59: 0.000 | AJ59: 12 | AK59: 0.000 | AL59: 12 | AM59: 0.000 | AN59: 12 | AO59: 0.000
C60: 13 | E60: 0.00 | G60: 0.00 | I60: 0.0 | K60: 0.0 | AD60: 0.00 | AG60: 13 | AH60: 0.000 | AJ60: 13 | AK60: 0.000 | AL60: 13 | AM60: 0.000 | AN60: 13 | AO60: 0.000
C61: 14 | E61: 0.00 | G61: 0.00 | I61: 0.0 | K61: 0.0 | AD61: 0.00 | AG61: 14 | AH61: 0.000 | AJ61: 14 | AK61: 0.000 | AL61: 14 | AM61: 0.000 | AN61: 14 | AO61: 0.000
C62: 15 | E62: 0.00 | G62: 0.00 | I62: 0.0 | K62: 0.0 | AD62: 0.00 | AG62: 15 | AH62: 0.000 | AJ62: 15 | AK62: 0.000 | AL62: 15 | AM62: 0.000 | AN62: 15 | AO62: 0.000
C63: 16 | E63: 0.00 | G63: 0.00 | I63: 0.0 | K63: 0.0 | AD63: 0.00 | AG63: 16 | AH63: 0.000 | AJ63: 16 | AK63: 0.000 | AL63: 16 | AM63: 0.000 | AN63: 16 | AO63: 0.000
C64: 17 | E64: 0.00 | G64: 0.00 | I64: 0.0 | K64: 0.0 | AD64: 0.00 | AG64: 17 | AH64: 0.000 | AJ64: 17 | AK64: 0.000 | AL64: 17 | AM64: 0.000 | AN64: 17 | AO64: 0.000
C65: 18 | E65: 0.00 | G65: 0.00 | I65: 0.0 | K65: 0.0 | AD65: 0.00 | AG65: 18 | AH65: 0.000 | AJ65: 18 | AK65: 0.000 | AL65: 18 | AM65: 0.000 | AN65: 18 | AO65: 0.000
C66: 19 | E66: 0.00 | G66: 0.00 | I66: 0.0 | K66: 0.0 | AD66: 0.00 | AG66: 19 | AH66: 0.000 | AJ66: 19 | AK66: 0.000 | AL66: 19 | AM66: 0.000 | AN66: 19 | AO66: 0.000
C67: 20 | E67: 0.00 | G67: 0.000 | I67: 0.0 | K67: 0.0 | AD67: 0.00 | AG67: 20 | AH67: 0.000 | AJ67: 20 | AK67: 0.000 | AL67: 20 | AM67: 0.000 | AN67: 20 | AO67: 0.000
C68: 21 | E68: 0.00 | G68: 0.000 | I68: 0.0 | K68: 0.0 | AD68: 0.00 | AG68: 21 | AH68: 0.000 | AJ68: 21 | AK68: 0.000 | AL68: 21 | AM68: 0.000 | AN68: 21 | AO68: 0.000
C69: 22 | E69: 0.00 | G69: 0.000 | I69: 0.0 | K69: 0.0 | AD69: 0.00 | AG69: 22 | AH69: 0.000 | AJ69: 22 | AK69: 0.000 | AL69: 22 | AM69: 0.000 | AN69: 22 | AO69: 0.000
C70: 23 | E70: 0.00 | G70: 0.000 | I70: 0.0 | K70: 0.0 | AD70: 0.00 | AG70: 23 | AH70: 0.000 | AJ70: 23 | AK70: 0.000 | AL70: 23 | AM70: 0.000 | AN70: 23 | AO70: 0.000
C71: 24 | E71: 0.00 | G71: 0.000 | I71: 0.0 | K71: 0.0 | AD71: 0.00 | AG71: 24 | AH71: =+AF48 -> 0.000 | AJ71: 24 | AK71: 0.000 | AL71: 24 | AM71: 0.000 | AN71: 24 | AO71: 0.000
B73: 1° Cambio de Pendiente : | G73: =IFERROR(+VLOOKUP(O73,AJ47:AK71,2,0),) -> 0.00 | K73: Tiempo d Aparicion: | O73: =IFERROR(+VLOOKUP(1,AI47:AJ71,2,0),) -> 0 | Q73: hr | S73: Volumen regulado1: | W73: =IFERROR(+VLOOKUP(G77,AL47:AM71,2,0),) -> 0.00 | Z73: m3
B75: 2° Cambio de Pendiente : | G75: =IFERROR(+VLOOKUP(O75,AJ47:AK71,2,0),) -> 0 | K75: Tiempo d Aparicion: | O75: =IFERROR(+VLOOKUP(2,AI47:AJ71,2,0),) -> 0 | Q75: hr | S75: Volumen regulado2: | W75: =IFERROR(+VLOOKUP(G77,AN47:AO71,2,0),) -> 0.00 | Z75: m3
B77: Tiempo de Aparicion : | I77: hr | S77: Intervalo de Volumen : | Z77: m3
B79: Volumen del Reservorio sera : | H79: =IFERROR(+W75,) -> 0.0 | J79: - | K79: =IFERROR(+W73,) -> 0.0 | M79: = | N79: =IFERROR(+H79-K79,) -> 0.0 | P79: m3 | S79: Volumen de Diseño : | W79: =IFERROR(+X77*(ROUNDUP(N79/X77,0)),) -> 0.00 | Z79: m3

Sheet Diseño R
A3: Grupo Crixuz Ingenieria y Construccion S.A.C.
D4: Cel: | E4: #942656792
D5: Correo: | E5: grupo_crixuz@hotmail.com
D6: G. General : | E6: Max J. Cardenas Alarcon
A7: Hoja de cálculo que se distribuye de manera condicional, dar el crédito a Crixuz Ingenieria y Construccion SAC, no se tienen restricciones adicionales
B10: ANALISIS Y DISEÑO DE RESERVORIOS RECTANGULARES - DISEÑO
A12: 01 | B12: DATOS INICIALES DE DISEÑO | V12: 0 | W12: 0 | X12: =+V25 -> 0.15 | Y12: =+W20-0.15-G17 -> 0.00
V13: =+G20 -> 0.00 | W13: =+W12 -> 0 | X13: =+V23 -> 0.15 | Y13: =+Y12 -> 0.00
B14: Volumen Reservorio: : | F14: V = | I14: m3 | V14: =+G20+0.25 -> 0.25 | W14: =+G19-0.15 -> -0.15
B15: Altura del Agua: | F15: h = | I15: m | V15: =+G18+0.15+G28+0.15+G18-V14 -> 0.05 | W15: =+W14 -> -0.15
B16: Intervalo Medida : | F16: It = | I16: m | V16: =+V15+0.25 -> 0.30 | W16: =+W12 -> 0
B17: Borde Libre : | F17: BL = | I17: m | V17: =+V16+G20 -> 0.30 | W17: =+W12 -> 0
B18: Volado de la Cimentacion : | F18: Vz = | I18: m | V18: =+V17 -> 0.30 | W18: =+G19 -> 0.00
B19: Espesor de Cimentacion: | F19: Hz = | I19: m | V19: =+V18-G18 -> 0.30 | W19: =+W18 -> 0.00
B20: Longitud Ensanchamiento: | F20: Lz = | I20: m | V20: =+V19 -> 0.30 | W20: =+W19+G29+0.15 -> 0.15
B21: Peso Especifico del Agua : | F21: γa = | I21: kg/m3 | V21: =+V20-0.15-G28+0.8 -> 0.95 | W21: =+W20 -> 0.15
B22: Peso Especifico concreto : | F22: γc = | I22: kg/m3 | V22: =+V21 -> 0.95 | W22: =+W21-0.15 -> 0.00
B23: Peso Especifico Terreno : | F23: γt = | I23: kg/m3 | V23: =+V20-0.15 -> 0.15 | W23: =+W20-0.15 -> 0.00
B24: Capacidad Portante : | F24: σt = | I24: kg/cm2 | V24: =+V23 -> 0.15 | W24: =+W23-G29 -> 0.00
B25: Resistencia del Concreto: | F25: f'c = | I25: kg/cm2 | V25: =+V24-G28 -> 0.15 | W25: =+W24 -> 0.00
B26: Esfuerzo de Fluencia Acero | F26: fy = | I26: kg/cm2 | V26: =+V25 -> 0.15 | W26: =+W25+G29+0.15 -> 0.15
V27: =+V26-0.15 -> 0.00 | W27: =+W26 -> 0.15
B28: Ancho de la Pared : | F28: b = | G28: =IFERROR(G16*(ROUNDUP(SQRT(G14/G15)/G16,0)),) -> 0.00 | I28: m | L28: Volumen Real de Almacenamiento : | Q28: =+G28*G28*G15 -> 0.00 | T28: m3 | V28: =+V27 -> 0.00 | W28: =+W27-G29-0.15 -> 0.00
B29: Altura Total del Muro : | F29: H = | G29: =+G15+G17 -> 0.00 | I29: m | L29: Tipo : | V29: =+V28-G18 -> 0.00 | W29: =+W28 -> 0.00
V30: =+V29 -> 0.00 | W30: =+W29-G19 -> 0.00
A31: 02 | B31: ANALISIS Y DISEÑO DE LAS PAREDES DEL RESERVORIO
B33: Utilizando el Metodo PCA se determina momentos y fuerzas cortantes, en los reservorios apoyados o superficiales, típicos para
B34: poblaciones rurales; se utiliza preferentemente la condición que considera la tapa libre y el fondo empotrado. Para este caso y
B35: cuando actúa solo el empuje del agua, la presión en el borde es cero y la presión máxima (P) ocurren en la base.
B36: El análisis se realiza cuando el reservorio se encuentra lleno y sujeto a la presión del agua. Para el cálculo de momentos utilizamos | W36: Top: Articulado - Midle: Empotrado - Botton: Articulado
B37: los coeficientes (k) propuestos por el PCA, los cuales se encuentran en función de el ancho de la pared (b) y la altura de agua (h). | W37: Top: Libre - Midle: Empotrado - Botton: Articulado
W38: Top: Libre - Midle: Empotrado - Botton: Empotrado
B39: Obtenemos la relación b/h: | G39: b | H39: = | I39: =+G28 -> 0.00 | K39: = | L39: =IFERROR(+I39/I40,) -> 0.00 | N39: =+IF(L39>=0.5,IF(L39<=3,"Cumple con la relacion", "No cumple con la relacion"),"No cumple con la relacion") -> No cumple con la relacion
G40: h | I40: =+G15 -> 0.00 | N40: 0.5 | O40: < | P40: b/h = | Q40: =+L39 -> 0.00 | R40: < | S40: 3.0 | W40: =+IF(M29="Top: Articulado - Midle: Empotrado - Botton: Articulado",1,IF(M29="Top: Libre - Midle: Empotrado - Botton: Articulado",2,3)) -> 3
B42: Debemos definir la relacion a ser utilizada para el cálculo de los momentos: | O42: b/h =
B44: Para la relación se presentan los coeficientes (k) para el cáculo de los momentos, cuya información se muestra a continuación:
D46: b/h | E46: x/h | F46: y = 0 | J46: y = b/4 | N46: y = b/2
F47: Mx | H47: My | J47: Mx | L47: My | N47: Mx | P47: My
D48: =+P42 -> 0 | E48: 0 | F48: =+IFERROR(W48,) -> 0.000 | H48: =IFERROR(+X48,) -> 0.000 | J48: =IFERROR(+Y48,) -> 0.000 | L48: =IFERROR(+Z48,) -> 0.000 | N48: =IFERROR(+AA48,) -> 0.000 | P48: =IFERROR(+AB48,) -> 0.000 | V48: =+$D$48+0.05 -> 0.05 | W48: =+IF($W$40=1,VLOOKUP(V48,AnexoI!$E$16:$K$60,2,0),IF($W$40=2,VLOOKUP(V48,AnexoII!$E$16:$K$60,2,0),VLOOKUP(V48,AnexoIII!$E$16:$K$60,2,0))) ->  | X48: =+IF($W$40=1,VLOOKUP(V48,AnexoI!$E$16:$K$60,3,0),IF($W$40=2,VLOOKUP(V48,AnexoII!$E$16:$K$60,3,0),VLOOKUP(V48,AnexoIII!$E$16:$K$60,3,0))) ->  | Y48: =+IF($W$40=1,VLOOKUP(V48,AnexoI!$E$16:$K$60,4,0),IF($W$40=2,VLOOKUP(V48,AnexoII!$E$16:$K$60,4,0),VLOOKUP(V48,AnexoIII!$E$16:$K$60,4,0))) ->  | Z48: =+IF($W$40=1,VLOOKUP(V48,AnexoI!$E$16:$K$60,5,0),IF($W$40=2,VLOOKUP(V48,AnexoII!$E$16:$K$60,5,0),VLOOKUP(V48,AnexoIII!$E$16:$K$60,5,0))) ->  | AA48: =+IF($W$40=1,VLOOKUP(V48,AnexoI!$E$16:$K$60,6,0),IF($W$40=2,VLOOKUP(V48,AnexoII!$E$16:$K$60,6,0),VLOOKUP(V48,AnexoIII!$E$16:$K$60,6,0))) ->  | AB48: =+IF($W$40=1,VLOOKUP(V48,AnexoI!$E$16:$K$60,7,0),IF($W$40=2,VLOOKUP(V48,AnexoII!$E$16:$K$60,7,0),VLOOKUP(V48,AnexoIII!$E$16:$K$60,7,0))) -> 
E49: 0.25 | F49: =+IFERROR(W49,) -> 0.000 | H49: =IFERROR(+X49,) -> 0.000 | J49: =IFERROR(+Y49,) -> 0.000 | L49: =IFERROR(+Z49,) -> 0.000 | N49: =IFERROR(+AA49,) -> 0.000 | P49: =IFERROR(+AB49,) -> 0.000 | V49: =+$D$48+0.04 -> 0.04 | W49: =+IF($W$40=1,VLOOKUP(V49,AnexoI!$E$16:$K$60,2,0),IF($W$40=2,VLOOKUP(V49,AnexoII!$E$16:$K$60,2,0),VLOOKUP(V49,AnexoIII!$E$16:$K$60,2,0))) ->  | X49: =+IF($W$40=1,VLOOKUP(V49,AnexoI!$E$16:$K$60,3,0),IF($W$40=2,VLOOKUP(V49,AnexoII!$E$16:$K$60,3,0),VLOOKUP(V49,AnexoIII!$E$16:$K$60,3,0))) ->  | Y49: =+IF($W$40=1,VLOOKUP(V49,AnexoI!$E$16:$K$60,4,0),IF($W$40=2,VLOOKUP(V49,AnexoII!$E$16:$K$60,4,0),VLOOKUP(V49,AnexoIII!$E$16:$K$60,4,0))) ->  | Z49: =+IF($W$40=1,VLOOKUP(V49,AnexoI!$E$16:$K$60,5,0),IF($W$40=2,VLOOKUP(V49,AnexoII!$E$16:$K$60,5,0),VLOOKUP(V49,AnexoIII!$E$16:$K$60,5,0))) ->  | AA49: =+IF($W$40=1,VLOOKUP(V49,AnexoI!$E$16:$K$60,6,0),IF($W$40=2,VLOOKUP(V49,AnexoII!$E$16:$K$60,6,0),VLOOKUP(V49,AnexoIII!$E$16:$K$60,6,0))) ->  | AB49: =+IF($W$40=1,VLOOKUP(V49,AnexoI!$E$16:$K$60,7,0),IF($W$40=2,VLOOKUP(V49,AnexoII!$E$16:$K$60,7,0),VLOOKUP(V49,AnexoIII!$E$16:$K$60,7,0))) -> 
E50: 0.5 | F50: =+IFERROR(W50,) -> 0.000 | H50: =IFERROR(+X50,) -> 0.000 | J50: =IFERROR(+Y50,) -> 0.000 | L50: =IFERROR(+Z50,) -> 0.000 | N50: =IFERROR(+AA50,) -> 0.000 | P50: =IFERROR(+AB50,) -> 0.000 | V50: =+$D$48+0.03 -> 0.03 | W50: =+IF($W$40=1,VLOOKUP(V50,AnexoI!$E$16:$K$60,2,0),IF($W$40=2,VLOOKUP(V50,AnexoII!$E$16:$K$60,2,0),VLOOKUP(V50,AnexoIII!$E$16:$K$60,2,0))) ->  | X50: =+IF($W$40=1,VLOOKUP(V50,AnexoI!$E$16:$K$60,3,0),IF($W$40=2,VLOOKUP(V50,AnexoII!$E$16:$K$60,3,0),VLOOKUP(V50,AnexoIII!$E$16:$K$60,3,0))) ->  | Y50: =+IF($W$40=1,VLOOKUP(V50,AnexoI!$E$16:$K$60,4,0),IF($W$40=2,VLOOKUP(V50,AnexoII!$E$16:$K$60,4,0),VLOOKUP(V50,AnexoIII!$E$16:$K$60,4,0))) ->  | Z50: =+IF($W$40=1,VLOOKUP(V50,AnexoI!$E$16:$K$60,5,0),IF($W$40=2,VLOOKUP(V50,AnexoII!$E$16:$K$60,5,0),VLOOKUP(V50,AnexoIII!$E$16:$K$60,5,0))) ->  | AA50: =+IF($W$40=1,VLOOKUP(V50,AnexoI!$E$16:$K$60,6,0),IF($W$40=2,VLOOKUP(V50,AnexoII!$E$16:$K$60,6,0),VLOOKUP(V50,AnexoIII!$E$16:$K$60,6,0))) ->  | AB50: =+IF($W$40=1,VLOOKUP(V50,AnexoI!$E$16:$K$60,7,0),IF($W$40=2,VLOOKUP(V50,AnexoII!$E$16:$K$60,7,0),VLOOKUP(V50,AnexoIII!$E$16:$K$60,7,0))) -> 
E51: 0.75 | F51: =+IFERROR(W51,) -> 0.000 | H51: =IFERROR(+X51,) -> 0.000 | J51: =IFERROR(+Y51,) -> 0.000 | L51: =IFERROR(+Z51,) -> 0.000 | N51: =IFERROR(+AA51,) -> 0.000 | P51: =IFERROR(+AB51,) -> 0.000 | V51: =+$D$48+0.02 -> 0.02 | W51: =+IF($W$40=1,VLOOKUP(V51,AnexoI!$E$16:$K$60,2,0),IF($W$40=2,VLOOKUP(V51,AnexoII!$E$16:$K$60,2,0),VLOOKUP(V51,AnexoIII!$E$16:$K$60,2,0))) ->  | X51: =+IF($W$40=1,VLOOKUP(V51,AnexoI!$E$16:$K$60,3,0),IF($W$40=2,VLOOKUP(V51,AnexoII!$E$16:$K$60,3,0),VLOOKUP(V51,AnexoIII!$E$16:$K$60,3,0))) ->  | Y51: =+IF($W$40=1,VLOOKUP(V51,AnexoI!$E$16:$K$60,4,0),IF($W$40=2,VLOOKUP(V51,AnexoII!$E$16:$K$60,4,0),VLOOKUP(V51,AnexoIII!$E$16:$K$60,4,0))) ->  | Z51: =+IF($W$40=1,VLOOKUP(V51,AnexoI!$E$16:$K$60,5,0),IF($W$40=2,VLOOKUP(V51,AnexoII!$E$16:$K$60,5,0),VLOOKUP(V51,AnexoIII!$E$16:$K$60,5,0))) ->  | AA51: =+IF($W$40=1,VLOOKUP(V51,AnexoI!$E$16:$K$60,6,0),IF($W$40=2,VLOOKUP(V51,AnexoII!$E$16:$K$60,6,0),VLOOKUP(V51,AnexoIII!$E$16:$K$60,6,0))) ->  | AB51: =+IF($W$40=1,VLOOKUP(V51,AnexoI!$E$16:$K$60,7,0),IF($W$40=2,VLOOKUP(V51,AnexoII!$E$16:$K$60,7,0),VLOOKUP(V51,AnexoIII!$E$16:$K$60,7,0))) -> 
E52: 1 | F52: =+IFERROR(W52,) -> 0.000 | H52: =IFERROR(+X52,) -> 0.000 | J52: =IFERROR(+Y52,) -> 0.000 | L52: =IFERROR(+Z52,) -> 0.000 | N52: =IFERROR(+AA52,) -> 0.000 | P52: =IFERROR(+AB52,) -> 0.000 | V52: =+$D$48+0.01 -> 0.01 | W52: =+IF($W$40=1,VLOOKUP(V52,AnexoI!$E$16:$K$60,2,0),IF($W$40=2,VLOOKUP(V52,AnexoII!$E$16:$K$60,2,0),VLOOKUP(V52,AnexoIII!$E$16:$K$60,2,0))) ->  | X52: =+IF($W$40=1,VLOOKUP(V52,AnexoI!$E$16:$K$60,3,0),IF($W$40=2,VLOOKUP(V52,AnexoII!$E$16:$K$60,3,0),VLOOKUP(V52,AnexoIII!$E$16:$K$60,3,0))) ->  | Y52: =+IF($W$40=1,VLOOKUP(V52,AnexoI!$E$16:$K$60,4,0),IF($W$40=2,VLOOKUP(V52,AnexoII!$E$16:$K$60,4,0),VLOOKUP(V52,AnexoIII!$E$16:$K$60,4,0))) ->  | Z52: =+IF($W$40=1,VLOOKUP(V52,AnexoI!$E$16:$K$60,5,0),IF($W$40=2,VLOOKUP(V52,AnexoII!$E$16:$K$60,5,0),VLOOKUP(V52,AnexoIII!$E$16:$K$60,5,0))) ->  | AA52: =+IF($W$40=1,VLOOKUP(V52,AnexoI!$E$16:$K$60,6,0),IF($W$40=2,VLOOKUP(V52,AnexoII!$E$16:$K$60,6,0),VLOOKUP(V52,AnexoIII!$E$16:$K$60,6,0))) ->  | AB52: =+IF($W$40=1,VLOOKUP(V52,AnexoI!$E$16:$K$60,7,0),IF($W$40=2,VLOOKUP(V52,AnexoII!$E$16:$K$60,7,0),VLOOKUP(V52,AnexoIII!$E$16:$K$60,7,0))) -> 
D53: Valores de los coeficientes (K) para el calculo de momentos
B55: Los momentos se determinan mediante la siguiente fórmula: | N55: M = | O55: k * γa * h3
B57: Conocidos los datos se calculan los momentos, los que se muestran en el cuadro siguiente: | W57: 0 | X57: 0
W58: 0 | X58: -1
D59: b/h | E59: x/h | F59: y = 0 | J59: y = b/4 | N59: y = b/2
F60: Mx | H60: My | J60: Mx | L60: My | N60: Mx | P60: My
D61: =+D48 -> 0 | E61: 0 | F61: =+F48*$G$21*$G$15*$G$15*$G$15 -> 0.000 | H61: =+H48*$G$21*$G$15*$G$15*$G$15 -> 0.000 | J61: =+J48*$G$21*$G$15*$G$15*$G$15 -> 0.000 | L61: =+L48*$G$21*$G$15*$G$15*$G$15 -> 0.000 | N61: =+N48*$G$21*$G$15*$G$15*$G$15 -> 0.000 | P61: =+P48*$G$21*$G$15*$G$15*$G$15 -> 0.000 | V61: =+E61*(-1) -> 0 | W61: =+W48*$G$21*$G$15*$G$15*$G$15 -> 
E62: 0.25 | F62: =+F49*$G$21*$G$15*$G$15*$G$15 -> 0.000 | H62: =+H49*$G$21*$G$15*$G$15*$G$15 -> 0.000 | J62: =+J49*$G$21*$G$15*$G$15*$G$15 -> 0.000 | L62: =+L49*$G$21*$G$15*$G$15*$G$15 -> 0.000 | N62: =+N49*$G$21*$G$15*$G$15*$G$15 -> 0.000 | P62: =+P49*$G$21*$G$15*$G$15*$G$15 -> 0.000 | V62: =+E62*(-1) -> -0.25
E63: 0.5 | F63: =+F50*$G$21*$G$15*$G$15*$G$15 -> 0.000 | H63: =+H50*$G$21*$G$15*$G$15*$G$15 -> 0.000 | J63: =+J50*$G$21*$G$15*$G$15*$G$15 -> 0.000 | L63: =+L50*$G$21*$G$15*$G$15*$G$15 -> 0.000 | N63: =+N50*$G$21*$G$15*$G$15*$G$15 -> 0.000 | P63: =+P50*$G$21*$G$15*$G$15*$G$15 -> 0.000 | V63: =+E63*(-1) -> -0.5
E64: 0.75 | F64: =+F51*$G$21*$G$15*$G$15*$G$15 -> 0.000 | H64: =+H51*$G$21*$G$15*$G$15*$G$15 -> 0.000 | J64: =+J51*$G$21*$G$15*$G$15*$G$15 -> 0.000 | L64: =+L51*$G$21*$G$15*$G$15*$G$15 -> 0.000 | N64: =+N51*$G$21*$G$15*$G$15*$G$15 -> 0.000 | P64: =+P51*$G$21*$G$15*$G$15*$G$15 -> 0.000 | V64: =+E64*(-1) -> -0.75
E65: 1 | F65: =+F52*$G$21*$G$15*$G$15*$G$15 -> 0.000 | H65: =+H52*$G$21*$G$15*$G$15*$G$15 -> 0.000 | J65: =+J52*$G$21*$G$15*$G$15*$G$15 -> 0.000 | L65: =+L52*$G$21*$G$15*$G$15*$G$15 -> 0.000 | N65: =+N52*$G$21*$G$15*$G$15*$G$15 -> 0.000 | P65: =+P52*$G$21*$G$15*$G$15*$G$15 -> 0.000 | V65: =+E65*(-1) -> -1
D66: Valores de los momentos verticales y horizontales (Klg-m)
E68: y | H68: b/2 | M68: b/2 | P68: y
V69: 0 | W69: =+AB61 ->  | Y69: 0 | Z69: =+AB62 -> 
E70: // | F70: =+IF(M29="Top: Articulado - Midle: Empotrado - Botton: Articulado","Articulado","Libre") -> Libre | O70: =+IF(M29="Top: Articulado - Midle: Empotrado - Botton: Articulado","Articulado","Libre") -> Libre | P70: \\ | V70: 0.25 | W70: =+Z61 ->  | Y70: 0.25 | Z70: =+Z62 -> 
E71: // | P71: \\ | V71: 0.5 | W71: =+X61 ->  | Y71: 0.5 | Z71: =+X62 -> 
E72: // | P72: \\ | V72: 0.75 | W72: =+Z61 ->  | Y72: 0.75 | Z72: =+Z62 -> 
E73: // | F73: Empotrado | O73: Empotrado | P73: \\ | Q73: h | V73: 1 | W73: =+AB61 ->  | Y73: 1 | Z73: =+AB62 -> 
E74: // | J74: x | P74: \\
E75: // | P75: \\
E76: // | J76: =+IF(M29="Top: Libre - Midle: Empotrado - Botton: Empotrado","Empotrado","Articulado") -> Articulado | P76: \\
D77: γa*h | E77: =+IF(M29="Top: Libre - Midle: Empotrado - Botton: Empotrado","//","") ->  | F77: =+IF($M$29="Top: Libre - Midle: Empotrado - Botton: Empotrado","//////////////","") ->  | G77: =+IF($M$29="Top: Libre - Midle: Empotrado - Botton: Empotrado","//////////////","") ->  | P77: =+IF($M$29="Top: Libre - Midle: Empotrado - Botton: Empotrado","\\","") -> 
B79: Graficamos los momento verticales Mx (kg-m), tenemos:
V81: 0 | W81: =+AB63 ->  | Y81: 0 | Z81: =+AB64 -> 
V82: 0.25 | W82: =+Z63 ->  | Y82: 0.25 | Z82: =+Z64 -> 
V83: 0.5 | W83: =+X63 ->  | Y83: 0.5 | Z83: =+X64 -> 
V84: 0.75 | W84: =+Z63 ->  | Y84: 0.75 | Z84: =+Z64 -> 
V85: 1 | W85: =+AB63 ->  | Y85: 1 | Z85: =+AB64 -> 
V91: 0 | W91: =+AB65 ->  | Y91: 0 | Z91: 0
V92: 0.25 | W92: =+Z65 ->  | Y92: 1 | Z92: 0
V93: 0.5 | W93: =+X65 -> 
V94: 0.75 | W94: =+Z65 -> 
V95: 1 | W95: =+AB65 -> 
W98: =+ABS(W61) ->  | X98: =+ABS(X61) -> 
W99: =+ABS(W62) -> 
W100: =+ABS(W63) -> 
B101: Graficamos los momento horizontales My (kg-m), tenemos: | W101: =+ABS(W64) -> 
W102: =+ABS(W65) -> 
W104: =+W98 ->  | Y104: =+X98 -> 
W105: =+W99 ->  | Y105: =+X99 -> 
W109: =+Y98 ->  | Y109: =+Z98 -> 
W110: =+Y99 ->  | Y110: =+Z99 -> 
W114: =+AA98 ->  | Y114: =+AB98 -> 
W115: =+AA99 ->  | Y115: =+AB99 -> 
B133: De los graficos se puede ver que el máximo momento absoluto es: | O133: Mmax = | P133: =IFERROR(+MAX(W98:AB102),) -> 0.000 | S133: kg-m
B135: El espesor de la pared ( e ) originado por un momento "M" y el esfuerzo de tracción por flexión (ft) en cualquier punto de la pared,
B136: se determina mediante el métodos elástico sin agrietamiento, cuyo valor se estima mediante:
H138: e1 = | I138: √(6* Mmax) | K138: = | L138: √(6* Mmax)
I139: √(fr*b) | L139: √(2*√fr*b)
B141: Donde : | D141: Mmax: Es el momento Maximo (kg-m)
D142: fr : Es la resistencia del concreto a tracción por flexión (kg/cm2); fr = 2*√f'c | O142: según el Art. 9.6.2.3 - E060 - RNE
D143: b : Es el ancho de analisis del muro, para este caso 1.00 m
D144: f'c : Es la resistencia a compresion del concreto (kg/cm2)
B146: Por lo tanto el espesor de la pared será:
D148: fr = | E148: =2*SQRT(G25) -> 0.00 | G148: kg/cm2
D150: b = | G150: cm
D152: e1 = | E152: =IFERROR(+SQRT((6*P133*100)/(E148*E150)),) -> 0.000 | G152: cm
D154: emin = | G154: cm
B156: El espesor de la pared para el diseño de concreto armado sera:
D158: e1 = | E158: =+IF(E152<E154,E154,2.5*(ROUNDUP(E152/2.5,0)) ) -> 0.00 | G158: cm | L158: Maximo momento absoluto originado por el empuje del agua
B160: Diseño de la armadura vertical del muro
B162: Para el diseno estructural de la armadura vertical de la pared se considera el momento maximo absoluto.
B164: Para la armadura vertical resulta un momento (Mx) igual: | L164: Mx= | M164: =IFERROR(K164*MAX(W104:W118),) -> 0.000 | P164: kg-m
C166: r1 = | F166: cm | G166: (Recubrimiento) | M166: d1 = | N166: =+E158-D166 -> 0.00 | P166: cm | Q166: (Peralte efectivo)
B168: Calculamos el area de acero con la siguiente ecuacion: | K168: Mu = 0.9*b*d1*f'c*w*(1-0.59w)
C170: Factor de reduccion f'c : | L170: Factor de reduccion fy :
D172: w1= | E172: =IFERROR(+(-V173+SQRT((V173^2)-4*V172*V174))/(2*V172),) -> 0.00000 | M172: w2= | N172: =IFERROR(+(-V173-SQRT((V173^2)-4*V172*V174))/(2*V172),) -> 0.0000 | V172: 0.59
V173: =+-1 -> -1
D174: ρ = | E174: =IFERROR(+MIN(N172,E172)*G25/(G26*P170),) -> 0.00000 | M174: As= | N174: =+E174*E150*N166 -> 0.00 | P174: cm2 | V174: =+(M164*100)/(0.9*E150*((N166)^2)*G25*G170) -> 
B176: El acero minimo es dado por : | G176: Asmin = | J176: *b*e1 | M176: Asmin = | N176: =H176*E150*E158 -> 0.00 | P176: cm2
B178: Por lo tanto el area de acero que utilizaremos en le muro sera: | M178: As = | N178: =+MAX(N174,N176) -> 0.00 | P178: cm2
B180: La distribucion de acero vertical en el muro sera de :
B182: Ø | C182: 3/8" | E182: 1/2" | G182: 5/8" | I182: 3/4" | K182: 7/8" | M182: 1" | P182: Distribucion de acero | V182: =+C182 -> 3/8" | W182: =+E182 -> 1/2" | X182: =+G182 -> 5/8" | Y182: =+I182 -> 3/4" | Z182: =+K182 -> 7/8" | AA182: =+M182 -> 1"
B183: Area | C183: 0.71 | E183: 1.27 | G183: 1.98 | I183: 2.85 | K183: 3.88 | M183: 5.07 | V183: =+C183 -> 0.71 | W183: =+E183 -> 1.27 | X183: =+G183 -> 1.98 | Y183: =+I183 -> 2.85 | Z183: =+K183 -> 3.88 | AA183: =+M183 -> 5.07
B184: s (cm) | C184: =IFERROR(+C183*100/$N$178,) -> 0.00 | E184: =IFERROR(+E183*100/$N$178,) -> 0.00 | G184: =IFERROR(+G183*100/$N$178,) -> 0.00 | I184: =IFERROR(+I183*100/$N$178,) -> 0.00 | K184: =IFERROR(+K183*100/$N$178,) -> 0.00 | M184: =IFERROR(+M183*100/$N$178,) -> 0.00 | P184: Ø | R184: @ | S184: =IFERROR((2.5*(ROUNDDOWN(HLOOKUP(Q184,V182:AA184,3,0)/2.5,0)))/100,) -> 0.000 | U184: m | V184: 0.00 | W184: 0.00 | X184: 0.00 | Y184: 0.00 | Z184: 0.00 | AA184: 0.00
B186: Diseño de la armadura horizontal del muro
B188: Para el diseno estructural de la armadura horizontal de la pared se considera el momento maximo absoluto.
B190: Para la armadura horizontal el momento (My) es igual a : | L190: My = | M190: =IFERROR(K190*MAX(Y104:Y118),) -> 0.000 | P190: kg-m
C192: r = | F192: cm | G192: (Recubrimiento) | M192: d = | N192: =+E158-D192 -> 0.00 | P192: cm | Q192: (Peralte efectivo)
B194: Calculamos el area de acero con la siguiente ecuacion: | K194: Mu = 0.9*b*d2*f'c*w*(1-0.59w)
C196: Factor de reduccion f'c : | L196: Factor de reduccion fy :
D198: w1= | E198: =IFERROR(+(-V199+SQRT((V199^2)-4*V198*V200))/(2*V198),) -> 0.00000 | M198: w2= | N198: =IFERROR(+(-V199-SQRT((V199^2)-4*V198*V200))/(2*V198),) -> 0.0000 | V198: 0.59
V199: =+-1 -> -1
D200: ρ = | E200: =IFERROR(+MIN(N198,E198)*G25/(G26*P196),) -> 0.00000 | M200: As= | N200: =+E200*E150*N192 -> 0.00 | P200: cm2 | V200: =+(M190*100)/(0.9*E150*((N192)^2)*G25*G196) -> 
B202: El acero minimo es dado por : | G202: Asmin = | J202: *b*e1 | M202: Asmin = | N202: =H202*E150*E158 -> 0.00 | P202: cm2
B204: Por lo tanto el area de acero que utilizaremos en le muro sera: | M204: As = | N204: =+MAX(N200,N202) -> 0.00 | P204: cm2
B206: La distribucion de acero vertical en el muro sera de :
B208: Ø | C208: 3/8" | E208: 1/2" | G208: 5/8" | I208: 3/4" | K208: 7/8" | M208: 1" | P208: Distribucion de acero | V208: =+C208 -> 3/8" | W208: =+E208 -> 1/2" | X208: =+G208 -> 5/8" | Y208: =+I208 -> 3/4" | Z208: =+K208 -> 7/8" | AA208: =+M208 -> 1"
B209: Area | C209: 0.71 | E209: 1.27 | G209: 1.98 | I209: 2.85 | K209: 3.88 | M209: 5.07 | V209: =+C209 -> 0.71 | W209: =+E209 -> 1.27 | X209: =+G209 -> 1.98 | Y209: =+I209 -> 2.85 | Z209: =+K209 -> 3.88 | AA209: =+M209 -> 5.07
B210: s (cm) | C210: =IFERROR(+C209*100/$N$204,) -> 0.00 | E210: =IFERROR(+E209*100/$N$204,) -> 0.00 | G210: =IFERROR(+G209*100/$N$204,) -> 0.00 | I210: =IFERROR(+I209*100/$N$204,) -> 0.00 | K210: =IFERROR(+K209*100/$N$204,) -> 0.00 | M210: =IFERROR(+M209*100/$N$204,) -> 0.00 | P210: Ø | R210: @ | S210: =IFERROR((2.5*(ROUNDDOWN(HLOOKUP(Q210,V208:AA210,3,0)/2.5,0)))/100,) -> 0.000 | U210: m | V210: 0.00 | W210: 0.00 | X210: 0.00 | Y210: 0.00 | Z210: 0.00 | AA210: 0.00
B212: Verificacion por cortante en el muro del reservorio | W212: Top: Articulado - Midle: Empotrado - Botton: Articulado | AB212: =+IF(M221="Top: Articulado - Midle: Empotrado - Botton: Articulado",1,2) -> 2
W213: Top: Libre - Midle: Empotrado - Botton: Articulado
B214: Se verifica el efecto del cortante en la base del muro del reservorio. El cortante que se produce por el empuje del agua es:
B216: El cortante en la base del muro del reservorio se da cuando : | L216: x = | O216: m | W216: 0.5 | X216: 1 | Y216: 2 | Z216: 5 | AA216: 10 | AB216: Infinito
W217: 0.1407wh2 | X217: 0.2419wh2 | Y217: 0.3290wh2 | AB217: 0.3333wh2
G218: Vu = | I218: * ( γa * x * h ) | K218: = | L218: =+H218*G21*M216*G15/2 -> 0.000 | O218: kg | W218: -0.2575wh2 | X218: -0.4397wh2 | Y218: -0.5833wh2 | AB218: -0.6000wh2
H219: 2 | W219: 0.1280wh2 | X219: 0.2582wh2 | Y219: 0.3604wh2 | AB219: 0.3912wh2
W220: 0.1736wh2 | X220: 0.3113wh2 | Y220: 0.4023wh2 | AB220: 0.4118wh2
B221: Calculamos el cortante usando las tablas del PCA para el tipo de reservorio: | W221: 0.1919wh2 | X221: 0.3153wh2 | Y221: 0.3904wh2 | AB221: 0.3980wh2
W222: 0.0000wh2b | X222: 0.0052wh2b | Y222: 0.0538wh2b | Z222: 0.1203wh2b | AA222: 0.1435wh2b | AB222: 0.1667wh2b
B223: b/h | I223: =+IF($AB$212=1,W216,IF($AB$212=2,W227,"")) -> 0.5 | K223: =+IF($AB$212=1,X216,IF($AB$212=2,X227,"")) -> 1 | M223: =+IF($AB$212=1,Y216,IF($AB$212=2,Y227,"")) -> 2 | O223: =+IF($AB$212=1,Z216,IF($AB$212=2,Z227,"")) -> 3 | Q223: =+IF($AB$212=1,AA216,IF($AB$212=2,AA227,"")) ->  | S223: =+IF($AB$212=1,AB216,IF($AB$212=2,AB227,"")) ->  | W223: 0.0480wh2b | X223: 0.0960wh2b | Y223: 0.1818wh2b | Z223: 0.2715wh2b | AA223: 0.3023wh2b | AB223: 0.3333wh2b
B224: Centro de la base | I224: =+IF($AB$212=1,W217,IF($AB$212=2,W228,"")) -> 0.141wh2 | K224: =+IF($AB$212=1,X217,IF($AB$212=2,X228,"")) -> 0.242wh2 | M224: =+IF($AB$212=1,Y217,IF($AB$212=2,Y228,"")) -> 0.380wh2 | O224: =+IF($AB$212=1,Z217,IF($AB$212=2,Z228,"")) -> 0.450wh2 | Q224: =+IF($AB$212=1,AA217,IF($AB$212=2,AA228,"")) ->  | S224: =+IF($AB$212=1,AB217,IF($AB$212=2,AB228,"")) ->  | W224: 0.2260wh2b | X224: 0.1994wh2b | Y224: 0.1322wh2b | Z224: 0.0541wh2b | AA224: 0.0271wh2b | AB224: 0.2750wh2b
B225: Vértice de la base | I225: -0.258wh2 | K225: -0.440wh2 | M225: -0.583wh2 | O225: -0.590wh2 | W225: 0.5000wh2b | X225: 0.5000wh2b | Y225: 0.5000wh2b | Z225: 0.5000wh2b | AA225: 0.5000wh2b | AB225: 0.5000wh2b
B226: =+IF($AB$212=1,W256,Z256) -> Tope inferior del lado empotrado | I226: 0.000wh2 | K226: 0.010wh2 | M226: 0.100wh2 | O226: 0.165wh2
B227: =+IF($AB$212=1,W257,Z257) -> Centro del lado empotrado | I227: 0.128wh2 | K227: 0.258wh2 | M227: 0.375wh2 | O227: 0.406wh2 | W227: 0.5 | X227: 1 | Y227: 2 | Z227: 3
B228: Tercio inferior del lado empotrado | I228: 0.174wh2 | K228: 0.311wh2 | M228: 0.406wh2 | O228: 0.416wh2 | W228: 0.141wh2 | X228: 0.242wh2 | Y228: 0.380wh2 | Z228: 0.450wh2
B229: Cuarto inferior del lado empotrado | I229: 0.192wh2b | K229: 0.315wh2b | M229: 0.390wh2b | O229: 0.398wh2b | W229: -0.258wh2 | X229: -0.440wh2 | Y229: -0.583wh2 | Z229: -0.590wh2
B230: Total en el borde inferior | I230: 0.048wh2b | K230: 0.096wh2b | M230: 0.204wh2b | O230: 0.286wh2b | W230: 0.000wh2 | X230: 0.010wh2 | Y230: 0.100wh2 | Z230: 0.165wh2
B231: Total de un lado empotrado | I231: 0.226wh2b | K231: 0.202wh2b | M231: 0.148wh2b | O231: 0.107wh2b | W231: 0.128wh2 | X231: 0.258wh2 | Y231: 0.375wh2 | Z231: 0.406wh2
B232: Total de los 4 bordes | I232: 0.500wh2b | K232: 0.500wh2b | M232: 0.500wh2b | O232: 0.500wh2b | W232: 0.174wh2 | X232: 0.311wh2 | Y232: 0.406wh2 | Z232: 0.416wh2
W233: 0.192wh2b | X233: 0.315wh2b | Y233: 0.390wh2b | Z233: 0.398wh2b
J234: b/h = | K234: =+P42 -> 0.00 | W234: 0.048wh2b | X234: 0.096wh2b | Y234: 0.204wh2b | Z234: 0.286wh2b
W235: 0.226wh2b | X235: 0.202wh2b | Y235: 0.148wh2b | Z235: 0.107wh2b
W236: 0.500wh2b | X236: 0.500wh2b | Y236: 0.500wh2b | Z236: 0.500wh2b
W238: =+IF($AB$212=1,AnexoV!M3,AnexoVI!M3) -> 0.0000 | X238: =+IF($AB$212=1,AnexoV!N3,AnexoVI!N3) -> 0.0100 | Y238: =+IF($AB$212=1,AnexoV!O3,AnexoVI!O3) -> 0.1000 | Z238: =+IF($AB$212=1,AnexoV!P3,AnexoVI!P3) -> 0.1650 | AA238: =+IF($AB$212=1,AnexoV!Q3,AnexoVI!Q3) -> 0.0000
W239: =+IF($AB$212=1,AnexoV!M4,AnexoVI!M4) -> 0.1280 | X239: =+IF($AB$212=1,AnexoV!N4,AnexoVI!N4) -> 0.2580 | Y239: =+IF($AB$212=1,AnexoV!O4,AnexoVI!O4) -> 0.3750 | Z239: =+IF($AB$212=1,AnexoV!P4,AnexoVI!P4) -> 0.4060 | AA239: =+IF($AB$212=1,AnexoV!Q4,AnexoVI!Q4) -> 0.5000
W240: =+IF($AB$212=1,AnexoV!M5,AnexoVI!M5) -> 0.1740 | X240: =+IF($AB$212=1,AnexoV!N5,AnexoVI!N5) -> 0.3110 | Y240: =+IF($AB$212=1,AnexoV!O5,AnexoVI!O5) -> 0.4060 | Z240: =+IF($AB$212=1,AnexoV!P5,AnexoVI!P5) -> 0.4160 | AA240: =+IF($AB$212=1,AnexoV!Q5,AnexoVI!Q5) -> 0.6667
W241: =+IF($AB$212=1,AnexoV!M6,AnexoVI!M6) -> 0.1920 | X241: =+IF($AB$212=1,AnexoV!N6,AnexoVI!N6) -> 0.3150 | Y241: =+IF($AB$212=1,AnexoV!O6,AnexoVI!O6) -> 0.3900 | Z241: =+IF($AB$212=1,AnexoV!P6,AnexoVI!P6) -> 0.3980 | AA241: =+IF($AB$212=1,AnexoV!Q6,AnexoVI!Q6) -> 0.7500
W242: =+IF($AB$212=1,AnexoV!M7,AnexoVI!M7) -> 0.0000 | X242: =+IF($AB$212=1,AnexoV!N7,AnexoVI!N7) -> 0.0000 | Y242: =+IF($AB$212=1,AnexoV!O7,AnexoVI!O7) -> 0.0000 | Z242: =+IF($AB$212=1,AnexoV!P7,AnexoVI!P7) -> 0.0000 | AA242: =+IF($AB$212=1,AnexoV!Q7,AnexoVI!Q7) -> 1.0000
W243: TRUE | X243: TRUE | Y243: TRUE | Z243: TRUE
W244: =IF(W$243,W238,NA()) -> 0.0000 | X244: =IF(X$243,X238,NA()) -> 0.0100 | Y244: =IF(Y$243,Y238,NA()) -> 0.1000 | Z244: 0.1650 | AA244: =+AA238 -> 0.0000
W245: =IF(W$243,W239,NA()) -> 0.1280 | X245: 0.2580 | Y245: 0.3750 | Z245: 0.4060 | AA245: =+AA239 -> 0.5000
W246: 0.1740 | X246: 0.3110 | Y246: 0.4060 | Z246: 0.4160 | AA246: 0.6667
W247: 0.1920 | X247: 0.3150 | Y247: 0.3900 | Z247: 0.3980 | AA247: 0.7500
W248: 0.0000 | X248: 0.0000 | Y248: 0.0000 | Z248: 0.0000 | AA248: 1.0000
B255: De la tabla y del grafico anterior obtenemos un cortante maximo de: | N255: *wh2 * | P255: = | Q255: =+IFERROR(L255*G21*G15*G15*O255,) -> 0.000 | T255: kg
W256: Centro del lado empotrado | Z256: Tope inferior del lado empotrado
B257: La resistencia del concreto al cortante esta dado por la siguiente expresión: | W257: Tercio inferior del lado empotrado | Z257: Centro del lado empotrado
W258: Cuarto inferior del lado empotrado | Z258: Tercio inferior del lado empotrado
F259: ØVc = | H259: * 0.53 * √f'c * b * d1 = | L259: =+G259*0.53*SQRT(G25)*E150*N192 -> 0.000 | O259: kg | W259: Total en el borde superior | Z259: Cuarto inferior del lado empotrado
B261: Verificamos el efecto de corte
D263: Vu= | E263: =+IFERROR(MAX(Q255,L218),) -> 0.000 | H263: kg | I263: < | K263: ØVc= | L263: =+L259 -> 0.000 | O263: kg | Q263: =+IF(E263<L263,"Cumple","Cambiar seccion") -> Cambiar seccion
B265: Revision de la longitud de anclaje del gancho del muro en la cimentacion
B267: La longitud basica de anclaje de un gancho estandar, para acero de diametro de: | N267: Ø | O267: =+Q184 -> 0 | P267: , es:
E269: ldh = ( 318 * db ) / √f'c | N269: ldh= | O269: =IFERROR(318*HLOOKUP(O267,W269:AB270,2,0)/SQRT(G25),) -> 0.00 | Q269: cm | V269: Ø | W269: 3/8" | X269: 1/2" | Y269: 5/8" | Z269: 3/4" | AA269: 7/8" | AB269: 1"
V270: db | W270: 0.98 | X270: 1.27 | Y270: 1.59 | Z270: 1.91 | AA270: 2.22 | AB270: 2.54
B271: La longitud de anclaje del gancho se reduce por los factores que cumplen las condiciones del ACI
C273: r1= | F273: Para ganchos de diametro menor a #11 con dobles de 90°, recubrimiento lateral mayor a 6.5 cm
F274: y recubrimiento detrás del acero de refuerzo de 5 cm.
C276: r2= | D276: As req | F276: = | G276: =IFERROR(+N200/(HLOOKUP(Q184,V182:AA184,2,FALSE)*100/(S184*100)),) -> 0.0000
D277: As prov
B279: La longitud de anclaje del gancho sera finalmente: | K279: Ldh= | L279: r1*r2*ldh
D281: Ldh= | E281: =+G276*D273*O269 -> 0.00 | G281: cm | I281: < | K281: Hz= | L281: =+G19*100 -> 0.00 | N281: cm | Q281: =+IF(E281<L281,"Cumple","Cambiar seccion") -> Cambiar seccion
A283: 03 | B283: ANALISIS Y DISEÑO DE LA LOSA DE CUBIERTA
B285: La losa de cubierta sera considerada como una losa armada en dos sentidos y apoyada en sus cuatro lados. Para el calculo del
B286: espesor de la losa tenemos:
C288: Espesor de los apoyos (muros): | H288: e1 = | I288: =+E158/100 -> 0.00 | K288: m | M288: Luz interna (Ancho muro): | Q288: Li = | R288: =+G28 -> 0.00 | T288: m
C290: Luz de calculo (L) : | H290: L = | I290: =+CONCATENATE(R288," +") -> 0 + | K290: =+CONCATENATE("2 (",I288,") / 2") -> 2 (0) / 2 | M290: = | N290: =+R288+2*I288/2 -> 0.00 | P290: m
B292: Hallamos el espesor "e2" de la losa de cubierta:
C294: e2 = | D294: L | G294: e2 = | H294: =+N290 -> 0.00 | J294: = | K294: =+N290/36 -> 0.00 | M294: m | Q294: e2 min = | T294: m
D295: 36 | H295: 36
B297: El espesor de la losa de cubierta para el diseño de concreto armado sera: | N297: e2= | O297: =+IF(K294<R294,R294,0.025*(ROUNDUP(K294/0.025,0)) ) -> 0 | Q297: m
B299: Segun el Reglamento Nacional de Edificaciones para losas macizas en dos direcciones, cuando la relacion de los dos lados es
B300: igual a la unidad, los momentos flexionantes en las fajas centrales son:
I302: Ma = Mb = C . W . L2
B304: Donde : | D304: C =
D305: W : Es el peso de la carga muerta y la carga viva
... 235 more rows

Sheet AnexoI
B1: TABLA N°01 DE DISEÑO PARA RESERVORIOS RECTANGULARES DE C°A° - PCA
C3: y | E3: b/2 | H3: b/2 | J3: y
C5: // | D5: Articulado | I5: Articulado | J5: \\
C6: // | J6: \\
C7: // | J7: \\
C8: // | D8: Empotrado | I8: Empotrado | J8: \\ | K8: h
C9: // | F9: x | J9: \\
C10: // | J10: \\
C11: // | F11: Articulado | J11: \\
B12: γa*h
B14: b/h | C14: b/h | D14: x/h | F14: y = 0 | H14: y = b/4 | J14: y = b/2
F15: Mx | G15: My | H15: Mx | I15: My | J15: Mx | K15: My
B16: 3.00 | C16: 3.00 | D16: 0 | E16: 3.05 | F16: 0.000 | G16: 0.000 | H16: 0.000 | I16: 0.000 | J16: 0.000 | K16: 0.000 | M16: 0.05 | N16: 3.00 | P16: =+$B$16+M16 -> 3.05
C17: 3.00 | D17: 0.25 | E17: 3.04 | F17: 0.035 | G17: 0.010 | H17: 0.026 | I17: 0.011 | J17: -0.008 | K17: -0.039 | M17: 0.04 | N17: 2.50 | P17: 3.04
C18: 3.00 | D18: 0.5 | E18: 3.03 | F18: 0.057 | G18: 0.016 | H18: 0.044 | I18: 0.017 | J18: -0.013 | K18: -0.063 | M18: 0.03 | N18: 2.00 | P18: 3.03
C19: 3.00 | D19: 0.75 | E19: 3.02 | F19: 0.051 | G19: 0.013 | H19: 0.041 | I19: 0.014 | J19: -0.011 | K19: -0.055 | M19: 0.02 | N19: 1.75 | P19: 3.02
C20: 3.00 | D20: 1 | E20: 3.01 | F20: 0.000 | G20: 0.000 | H20: 0.000 | I20: 0.000 | J20: 0.000 | K20: 0.000 | M20: 0.01 | N20: 1.50 | P20: =+$B$16+M20 -> 3.01
B21: 2.50 | C21: 2.50 | D21: 0 | E21: 2.55 | F21: 0.000 | G21: 0.000 | H21: 0.000 | I21: 0.000 | J21: 0.000 | K21: 0.000 | M21: 0.05 | N21: 1.25 | P21: =+$B$21+M21 -> 2.55
C22: 2.50 | D22: 0.25 | E22: 2.54 | F22: 0.031 | G22: 0.011 | H22: 0.021 | I22: 0.010 | J22: -0.008 | K22: -0.038 | M22: 0.04 | N22: 1.00 | P22: 2.54
C23: 2.50 | D23: 0.5 | E23: 2.53 | F23: 0.052 | G23: 0.017 | H23: 0.036 | I23: 0.017 | J23: -0.012 | K23: -0.062 | M23: 0.03 | N23: 0.75 | P23: 2.53
C24: 2.50 | D24: 0.75 | E24: 2.52 | F24: 0.047 | G24: 0.015 | H24: 0.036 | I24: 0.014 | J24: -0.011 | K24: -0.055 | M24: 0.02 | N24: 0.50 | P24: 2.52
C25: 2.50 | D25: 1 | E25: 2.51 | F25: 0.000 | G25: 0.000 | H25: 0.000 | I25: 0.000 | J25: 0.000 | K25: 0.000 | M25: 0.01 | P25: =+$B$21+M25 -> 2.51
B26: 2.00 | C26: 2.00 | D26: 0 | E26: 2.05 | F26: 0.000 | G26: 0.000 | H26: 0.000 | I26: 0.000 | J26: 0.000 | K26: 0.000 | M26: 0.05 | P26: =+$B$26+M26 -> 2.05
C27: 2.00 | D27: 0.25 | E27: 2.04 | F27: 0.025 | G27: 0.013 | H27: 0.015 | I27: 0.009 | J27: -0.007 | K27: -0.037 | M27: 0.04 | P27: 2.04
C28: 2.00 | D28: 0.5 | E28: 2.03 | F28: 0.042 | G28: 0.020 | H28: 0.028 | I28: 0.015 | J28: -0.012 | K28: -0.059 | M28: 0.03 | P28: 2.03
C29: 2.00 | D29: 0.75 | E29: 2.02 | F29: 0.041 | G29: 0.016 | H29: 0.029 | I29: 0.013 | J29: -0.011 | K29: -0.053 | M29: 0.02 | P29: 2.02
C30: 2.00 | D30: 1 | E30: 2.01 | F30: 0.000 | G30: 0.000 | H30: 0.000 | I30: 0.000 | J30: 0.000 | K30: 0.000 | M30: 0.01 | P30: =+$B$26+M30 -> 2.01
B31: 1.75 | C31: 1.75 | D31: 0 | E31: 1.80 | F31: 0.000 | G31: 0.000 | H31: 0.000 | I31: 0.000 | J31: 0.000 | K31: 0.000 | M31: 0.05 | P31: =+$B$31+M31 -> 1.80
C32: 1.75 | D32: 0.25 | E32: 1.79 | F32: 0.020 | G32: 0.013 | H32: 0.012 | I32: 0.008 | J32: -0.007 | K32: -0.035 | M32: 0.04 | P32: 1.79
C33: 1.75 | D33: 0.5 | E33: 1.78 | F33: 0.036 | G33: 0.020 | H33: 0.023 | I33: 0.013 | J33: -0.011 | K33: -0.057 | M33: 0.03 | P33: 1.78
C34: 1.75 | D34: 0.75 | E34: 1.77 | F34: 0.036 | G34: 0.017 | H34: 0.025 | I34: 0.012 | J34: -0.010 | K34: -0.051 | M34: 0.02 | P34: 1.77
C35: 1.75 | D35: 1 | E35: 1.76 | F35: 0.000 | G35: 0.000 | H35: 0.000 | I35: 0.000 | J35: 0.000 | K35: 0.000 | M35: 0.01 | P35: =+$B$31+M35 -> 1.76
B36: 1.50 | C36: 1.50 | D36: 0 | E36: 1.55 | F36: 0.000 | G36: 0.000 | H36: 0.000 | I36: 0.000 | J36: 0.000 | K36: 0.000 | M36: 0.05 | P36: =+$B$36+M36 -> 1.55
C37: 1.50 | D37: 0.25 | E37: 1.54 | F37: 0.015 | G37: 0.013 | H37: 0.008 | I37: 0.007 | J37: -0.006 | K37: -0.032 | M37: 0.04 | P37: 1.54
C38: 1.50 | D38: 0.5 | E38: 1.53 | F38: 0.028 | G38: 0.021 | H38: 0.016 | I38: 0.011 | J38: -0.010 | K38: -0.052 | M38: 0.03 | P38: 1.53
C39: 1.50 | D39: 0.75 | E39: 1.52 | F39: 0.030 | G39: 0.017 | H39: 0.020 | I39: 0.011 | J39: -0.010 | K39: -0.048 | M39: 0.02 | P39: 1.52
C40: 1.50 | D40: 1 | E40: 1.51 | F40: 0.000 | G40: 0.000 | H40: 0.000 | I40: 0.000 | J40: 0.000 | K40: 0.000 | M40: 0.01 | P40: =+$B$36+M40 -> 1.51
B41: 1.25 | C41: 1.25 | D41: 0 | E41: 1.30 | F41: 0.000 | G41: 0.000 | H41: 0.000 | I41: 0.000 | J41: 0.000 | K41: 0.000 | M41: 0.05 | P41: =+$B$41+M41 -> 1.30
C42: 1.25 | D42: 0.25 | E42: 1.29 | F42: 0.009 | G42: 0.012 | H42: 0.005 | I42: 0.005 | J42: -0.006 | K42: -0.028 | M42: 0.04 | P42: 1.29
C43: 1.25 | D43: 0.5 | E43: 1.28 | F43: 0.019 | G43: 0.019 | H43: 0.011 | I43: 0.009 | J43: -0.009 | K43: -0.045 | M43: 0.03 | P43: 1.28
C44: 1.25 | D44: 0.75 | E44: 1.27 | F44: 0.023 | G44: 0.017 | H44: 0.014 | I44: 0.009 | J44: -0.009 | K44: -0.043 | M44: 0.02 | P44: 1.27
C45: 1.25 | D45: 1 | E45: 1.26 | F45: 0.000 | G45: 0.000 | H45: 0.000 | I45: 0.000 | J45: 0.000 | K45: 0.000 | M45: 0.01 | P45: =+$B$41+M45 -> 1.26
B46: 1.00 | C46: 1.00 | D46: 0 | E46: 1.05 | F46: 0.000 | G46: 0.000 | H46: 0.000 | I46: 0.000 | J46: 0.000 | K46: 0.000 | M46: 0.05 | P46: =+$B$46+M46 -> 1.05
C47: 1.00 | D47: 0.25 | E47: 1.04 | F47: 0.005 | G47: 0.009 | H47: 0.002 | I47: 0.003 | J47: -0.004 | K47: -0.020 | M47: 0.04 | P47: 1.04
C48: 1.00 | D48: 0.5 | E48: 1.03 | F48: 0.011 | G48: 0.016 | H48: 0.006 | I48: 0.006 | J48: -0.007 | K48: -0.035 | M48: 0.03 | P48: 1.03
C49: 1.00 | D49: 0.75 | E49: 1.02 | F49: 0.016 | G49: 0.014 | H49: 0.009 | I49: 0.007 | J49: -0.007 | K49: -0.035 | M49: 0.02 | P49: 1.02
C50: 1.00 | D50: 1 | E50: 1.01 | F50: 0.000 | G50: 0.000 | H50: 0.000 | I50: 0.000 | J50: 0.000 | K50: 0.000 | M50: 0.01 | P50: =+$B$46+M50 -> 1.01
B51: 0.75 | C51: 0.75 | D51: 0 | E51: 0.80 | F51: 0.000 | G51: 0.000 | H51: 0.000 | I51: 0.000 | J51: 0.000 | K51: 0.000 | M51: 0.05 | P51: =+$B$51+M51 -> 0.80
C52: 0.75 | D52: 0.25 | E52: 0.79 | F52: 0.001 | G52: 0.006 | H52: 0.000 | I52: 0.002 | J52: -0.002 | K52: -0.012 | M52: 0.04 | P52: 0.79
C53: 0.75 | D53: 0.5 | E53: 0.78 | F53: 0.005 | G53: 0.011 | H53: 0.002 | I53: 0.003 | J53: -0.004 | K53: -0.022 | M53: 0.03 | P53: 0.78
C54: 0.75 | D54: 0.75 | E54: 0.77 | F54: 0.009 | G54: 0.011 | H54: 0.005 | I54: 0.005 | J54: -0.005 | K54: -0.025 | M54: 0.02 | P54: 0.77
C55: 0.76 | D55: 1 | E55: 0.76 | F55: 0.000 | G55: 0.000 | H55: 0.000 | I55: 0.000 | J55: 0.000 | K55: 0.000 | M55: 0.01 | P55: =+$B$51+M55 -> 0.76
B56: 0.50 | C56: 0.55 | D56: 0 | E56: 0.55 | F56: 0.000 | G56: 0.000 | H56: 0.000 | I56: 0.000 | J56: 0.000 | K56: 0.000 | M56: 0.05 | P56: =+$B$56+M56 -> 0.55
C57: 0.54 | D57: 0.25 | E57: 0.54 | F57: 0.000 | G57: 0.003 | H57: 0.000 | I57: 0.001 | J57: -0.001 | K57: -0.005 | M57: 0.04 | P57: 0.54
C58: 0.53 | D58: 0.5 | E58: 0.53 | F58: 0.001 | G58: 0.005 | H58: 0.001 | I58: 0.001 | J58: -0.002 | K58: -0.010 | M58: 0.03 | P58: 0.53
C59: 0.52 | D59: 0.75 | E59: 0.52 | F59: 0.004 | G59: 0.007 | H59: 0.002 | I59: 0.002 | J59: -0.003 | K59: -0.014 | M59: 0.02 | P59: 0.52
C60: 0.51 | D60: 1 | E60: 0.51 | F60: 0.000 | G60: 0.000 | H60: 0.000 | I60: 0.000 | J60: 0.000 | K60: 0.000 | M60: 0.01 | P60: =+$B$56+M60 -> 0.51

Sheet AnexoII
B1: TABLA N°02 DE DISEÑO PARA RESERVORIOS RECTANGULARES DE C°A° - PCA
C3: y | E3: b/2 | H3: b/2 | J3: y
C5: // | D5: libre | I5: libre | J5: \\
C6: // | J6: \\
C7: // | J7: \\
C8: // | D8: Empotrado | I8: Empotrado | J8: \\ | K8: h
C9: // | F9: x | J9: \\
C10: // | J10: \\
C11: // | F11: Articulado | J11: \\
B12: γa*h
B14: b/h | C14: b/h | D14: x/h | F14: y = 0 | H14: y = b/4 | J14: y = b/2
F15: Mx | G15: My | H15: Mx | I15: My | J15: Mx | K15: My
B16: 3.00 | C16: 3.00 | D16: 0 | E16: 3.05 | F16: 0.000 | G16: 0.070 | H16: 0.000 | I16: 0.027 | J16: 0.000 | K16: -0.196 | M16: 0.05 | N16: 3.00 | P16: =+$B$16+M16 -> 3.05
C17: 3.00 | D17: 0.25 | E17: 3.04 | F17: 0.028 | G17: 0.061 | H17: 0.015 | I17: 0.028 | J17: -0.034 | K17: -0.170 | M17: 0.04 | N17: 2.50 | P17: 3.04
C18: 3.00 | D18: 0.5 | E18: 3.03 | F18: 0.049 | G18: 0.049 | H18: 0.032 | I18: 0.026 | J18: -0.027 | K18: -0.137 | M18: 0.03 | N18: 2.00 | P18: 3.03
C19: 3.00 | D19: 0.75 | E19: 3.02 | F19: 0.046 | G19: 0.030 | H19: 0.034 | I19: 0.018 | J19: -0.017 | K19: -0.087 | M19: 0.02 | N19: 1.75 | P19: 3.02
C20: 3.00 | D20: 1 | E20: 3.01 | F20: 0.000 | G20: 0.000 | H20: 0.000 | I20: 0.000 | J20: 0.000 | K20: 0.000 | M20: 0.01 | N20: 1.50 | P20: =+$B$16+M20 -> 3.01
B21: 2.50 | C21: 2.50 | D21: 0 | E21: 2.55 | F21: 0.000 | G21: 0.061 | H21: 0.000 | I21: 0.019 | J21: 0.000 | K21: -0.138 | M21: 0.05 | N21: 1.25 | P21: =+$B$21+M21 -> 2.55
C22: 2.50 | D22: 0.25 | E22: 2.54 | F22: 0.024 | G22: 0.053 | H22: 0.010 | I22: 0.022 | J22: -0.026 | K22: -0.132 | M22: 0.04 | N22: 1.00 | P22: 2.54
C23: 2.50 | D23: 0.5 | E23: 2.53 | F23: 0.042 | G23: 0.044 | H23: 0.025 | I23: 0.022 | J23: -0.023 | K23: -0.115 | M23: 0.03 | N23: 0.75 | P23: 2.53
C24: 2.50 | D24: 0.75 | E24: 2.52 | F24: 0.041 | G24: 0.027 | H24: 0.030 | I24: 0.016 | J24: -0.016 | K24: -0.078 | M24: 0.02 | N24: 0.50 | P24: 2.52
C25: 2.50 | D25: 1 | E25: 2.51 | F25: 0.000 | G25: 0.000 | H25: 0.000 | I25: 0.000 | J25: 0.000 | K25: 0.000 | M25: 0.01 | P25: =+$B$21+M25 -> 2.51
B26: 2.00 | C26: 2.00 | D26: 0 | E26: 2.05 | F26: 0.000 | G26: 0.045 | H26: 0.000 | I26: 0.011 | J26: 0.000 | K26: -0.091 | M26: 0.05 | P26: =+$B$26+M26 -> 2.05
C27: 2.00 | D27: 0.25 | E27: 2.04 | F27: 0.016 | G27: 0.042 | H27: 0.006 | I27: 0.014 | J27: -0.019 | K27: -0.094 | M27: 0.04 | P27: 2.04
C28: 2.00 | D28: 0.5 | E28: 2.03 | F28: 0.033 | G28: 0.036 | H28: 0.020 | I28: 0.016 | J28: -0.018 | K28: -0.089 | M28: 0.03 | P28: 2.03
C29: 2.00 | D29: 0.75 | E29: 2.02 | F29: 0.035 | G29: 0.024 | H29: 0.025 | I29: 0.014 | J29: -0.013 | K29: -0.065 | M29: 0.02 | P29: 2.02
C30: 2.00 | D30: 1 | E30: 2.01 | F30: 0.000 | G30: 0.000 | H30: 0.000 | I30: 0.000 | J30: 0.000 | K30: 0.000 | M30: 0.01 | P30: =+$B$26+M30 -> 2.01
B31: 1.75 | C31: 1.75 | D31: 0 | E31: 1.80 | F31: 0.000 | G31: 0.036 | H31: 0.000 | I31: 0.008 | J31: 0.000 | K31: -0.071 | M31: 0.05 | P31: =+$B$31+M31 -> 1.80
C32: 1.75 | D32: 0.25 | E32: 1.79 | F32: 0.013 | G32: 0.035 | H32: 0.005 | I32: 0.011 | J32: -0.015 | K32: -0.076 | M32: 0.04 | P32: 1.79
C33: 1.75 | D33: 0.5 | E33: 1.78 | F33: 0.028 | G33: 0.032 | H33: 0.017 | I33: 0.014 | J33: -0.015 | K33: -0.076 | M33: 0.03 | P33: 1.78
C34: 1.75 | D34: 0.75 | E34: 1.77 | F34: 0.031 | G34: 0.022 | H34: 0.021 | I34: 0.012 | J34: -0.012 | K34: -0.059 | M34: 0.02 | P34: 1.77
C35: 1.75 | D35: 1 | E35: 1.76 | F35: 0.000 | G35: 0.000 | H35: 0.000 | I35: 0.000 | J35: 0.000 | K35: 0.000 | M35: 0.01 | P35: =+$B$31+M35 -> 1.76
B36: 1.50 | C36: 1.50 | D36: 0 | E36: 1.55 | F36: 0.000 | G36: 0.027 | H36: 0.000 | I36: 0.005 | J36: 0.000 | K36: -0.052 | M36: 0.05 | P36: =+$B$36+M36 -> 1.55
C37: 1.50 | D37: 0.25 | E37: 1.54 | F37: 0.009 | G37: 0.028 | H37: 0.003 | I37: 0.008 | J37: -0.012 | K37: -0.059 | M37: 0.04 | P37: 1.54
C38: 1.50 | D38: 0.5 | E38: 1.53 | F38: 0.022 | G38: 0.027 | H38: 0.012 | I38: 0.011 | J38: -0.013 | K38: -0.063 | M38: 0.03 | P38: 1.53
C39: 1.50 | D39: 0.75 | E39: 1.52 | F39: 0.027 | G39: 0.020 | H39: 0.017 | I39: 0.011 | J39: -0.010 | K39: -0.052 | M39: 0.02 | P39: 1.52
C40: 1.50 | D40: 1 | E40: 1.51 | F40: 0.000 | G40: 0.000 | H40: 0.000 | I40: 0.000 | J40: 0.000 | K40: 0.000 | M40: 0.01 | P40: =+$B$36+M40 -> 1.51
B41: 1.25 | C41: 1.25 | D41: 0 | E41: 1.30 | F41: 0.000 | G41: 0.017 | H41: 0.000 | I41: 0.003 | J41: 0.000 | K41: -0.034 | M41: 0.05 | P41: =+$B$41+M41 -> 1.30
C42: 1.25 | D42: 0.25 | E42: 1.29 | F42: 0.005 | G42: 0.020 | H42: 0.002 | I42: 0.005 | J42: -0.008 | K42: -0.042 | M42: 0.04 | P42: 1.29
C43: 1.25 | D43: 0.5 | E43: 1.28 | F43: 0.017 | G43: 0.023 | H43: 0.009 | I43: 0.009 | J43: -0.010 | K43: -0.049 | M43: 0.03 | P43: 1.28
C44: 1.25 | D44: 0.75 | E44: 1.27 | F44: 0.021 | G44: 0.017 | H44: 0.013 | I44: 0.009 | J44: -0.009 | K44: -0.044 | M44: 0.02 | P44: 1.27
C45: 1.25 | D45: 1 | E45: 1.26 | F45: 0.000 | G45: 0.000 | H45: 0.000 | I45: 0.000 | J45: 0.000 | K45: 0.000 | M45: 0.01 | P45: =+$B$41+M45 -> 1.26
B46: 1.00 | C46: 1.00 | D46: 0 | E46: 1.05 | F46: 0.000 | G46: 0.010 | H46: 0.000 | I46: 0.002 | J46: 0.000 | K46: -0.019 | M46: 0.05 | P46: =+$B$46+M46 -> 1.05
C47: 1.00 | D47: 0.25 | E47: 1.04 | F47: 0.002 | G47: 0.013 | H47: 0.000 | I47: 0.003 | J47: -0.005 | K47: -0.025 | M47: 0.04 | P47: 1.04
C48: 1.00 | D48: 0.5 | E48: 1.03 | F48: 0.010 | G48: 0.017 | H48: 0.005 | I48: 0.006 | J48: -0.007 | K48: -0.036 | M48: 0.03 | P48: 1.03
C49: 1.00 | D49: 0.75 | E49: 1.02 | F49: 0.015 | G49: 0.015 | H49: 0.009 | I49: 0.007 | J49: -0.007 | K49: -0.036 | M49: 0.02 | P49: 1.02
C50: 1.00 | D50: 1 | E50: 1.01 | F50: 0.000 | G50: 0.000 | H50: 0.000 | I50: 0.000 | J50: 0.000 | K50: 0.000 | M50: 0.01 | P50: =+$B$46+M50 -> 1.01
B51: 0.75 | C51: 0.75 | D51: 0 | E51: 0.80 | F51: 0.000 | G51: 0.005 | H51: 0.000 | I51: 0.001 | J51: 0.000 | K51: -0.008 | M51: 0.05 | P51: =+$B$51+M51 -> 0.80
C52: 0.75 | D52: 0.25 | E52: 0.79 | F52: 0.001 | G52: 0.008 | H52: 0.000 | I52: 0.002 | J52: -0.003 | K52: -0.013 | M52: 0.04 | P52: 0.79
C53: 0.75 | D53: 0.5 | E53: 0.78 | F53: 0.005 | G53: 0.011 | H53: 0.002 | I53: 0.004 | J53: -0.004 | K53: -0.022 | M53: 0.03 | P53: 0.78
C54: 0.75 | D54: 0.75 | E54: 0.77 | F54: 0.010 | G54: 0.012 | H54: 0.006 | I54: 0.004 | J54: -0.005 | K54: -0.026 | M54: 0.02 | P54: 0.77
C55: 0.76 | D55: 1 | E55: 0.76 | F55: 0.000 | G55: 0.000 | H55: 0.000 | I55: 0.000 | J55: 0.000 | K55: 0.000 | M55: 0.01 | P55: =+$B$51+M55 -> 0.76
B56: 0.50 | C56: 0.55 | D56: 0 | E56: 0.55 | F56: 0.000 | G56: 0.002 | H56: 0.000 | I56: 0.000 | J56: 0.000 | K56: -0.003 | M56: 0.05 | P56: =+$B$56+M56 -> 0.55
C57: 0.54 | D57: 0.25 | E57: 0.54 | F57: 0.000 | G57: 0.004 | H57: 0.000 | I57: 0.001 | J57: -0.001 | K57: -0.005 | M57: 0.04 | P57: 0.54
C58: 0.53 | D58: 0.5 | E58: 0.53 | F58: 0.002 | G58: 0.006 | H58: 0.001 | I58: 0.002 | J58: -0.002 | K58: -0.010 | M58: 0.03 | P58: 0.53
C59: 0.52 | D59: 0.75 | E59: 0.52 | F59: 0.007 | G59: 0.008 | H59: 0.002 | I59: 0.002 | J59: -0.003 | K59: -0.014 | M59: 0.02 | P59: 0.52
C60: 0.51 | D60: 1 | E60: 0.51 | F60: 0.000 | G60: 0.000 | H60: 0.000 | I60: 0.000 | J60: 0.000 | K60: 0.000 | M60: 0.01 | P60: =+$B$56+M60 -> 0.51

Sheet AnexoIII
B1: TABLA N°03 DE DISEÑO PARA RESERVORIOS RECTANGULARES DE C°A° - PCA
C3: y | E3: b/2 | H3: b/2 | J3: y
C5: // | D5: libre | I5: libre | J5: \\
C6: // | J6: \\
C7: // | J7: \\
C8: // | D8: Empotrado | I8: Empotrado | J8: \\ | K8: h
C9: // | F9: x | J9: \\
C10: // | J10: \\
C11: // | F11: Empotrado | J11: \\
B12: γa*h | C12: // | D12: ///////////////// | E12: ///////////////// | F12: ///////////////// | G12: ///////////////// | H12: ///////////////// | I12: ///////////////// | J12: \\
B14: b/h | C14: b/h | D14: x/h | F14: y = 0 | H14: y = b/4 | J14: y = b/2
F15: Mx | G15: My | H15: Mx | I15: My | J15: Mx | K15: My
B16: 3.00 | C16: 3.00 | D16: 0 | E16: 3.05 | F16: 0.000 | G16: 0.025 | H16: 0.000 | I16: 0.014 | J16: 0.000 | K16: -0.082 | M16: 0.05 | N16: 3.00 | P16: =+$B$16+M16 -> 3.05
C17: 3.00 | D17: 0.25 | E17: 3.04 | F17: 0.010 | G17: 0.019 | H17: 0.007 | I17: 0.013 | J17: -0.014 | K17: -0.071 | M17: 0.04 | N17: 2.50 | P17: 3.04
C18: 3.00 | D18: 0.5 | E18: 3.03 | F18: 0.005 | G18: 0.010 | H18: 0.008 | I18: 0.010 | J18: -0.011 | K18: -0.055 | M18: 0.03 | N18: 2.00 | P18: 3.03
C19: 3.00 | D19: 0.75 | E19: 3.02 | F19: -0.033 | G19: -0.004 | H19: -0.018 | I19: 0.000 | J19: -0.006 | K19: -0.028 | M19: 0.02 | N19: 1.75 | P19: 3.02
C20: 3.00 | D20: 1 | E20: 3.01 | F20: -0.126 | G20: -0.025 | H20: -0.092 | I20: -0.018 | J20: 0.000 | K20: 0.000 | M20: 0.01 | N20: 1.50 | P20: =+$B$16+M20 -> 3.01
B21: 2.50 | C21: 2.50 | D21: 0 | E21: 2.55 | F21: 0.000 | G21: 0.027 | H21: 0.000 | I21: 0.013 | J21: 0.000 | K21: -0.074 | M21: 0.05 | N21: 1.25 | P21: =+$B$21+M21 -> 2.55
C22: 2.50 | D22: 0.25 | E22: 2.54 | F22: 0.012 | G22: 0.022 | H22: 0.007 | I22: 0.013 | J22: -0.013 | K22: -0.066 | M22: 0.04 | N22: 1.00 | P22: 2.54
C23: 2.50 | D23: 0.5 | E23: 2.53 | F23: 0.011 | G23: 0.014 | H23: 0.008 | I23: 0.010 | J23: -0.011 | K23: -0.053 | M23: 0.03 | N23: 0.75 | P23: 2.53
C24: 2.50 | D24: 0.75 | E24: 2.52 | F24: -0.021 | G24: -0.001 | H24: -0.010 | I24: 0.001 | J24: -0.005 | K24: -0.027 | M24: 0.02 | N24: 0.50 | P24: 2.52
C25: 2.50 | D25: 1 | E25: 2.51 | F25: -0.108 | G25: -0.022 | H25: -0.077 | I25: -0.015 | J25: 0.000 | K25: 0.000 | M25: 0.01 | P25: =+$B$21+M25 -> 2.51
B26: 2.00 | C26: 2.00 | D26: 0 | E26: 2.05 | F26: 0.000 | G26: 0.027 | H26: 0.000 | I26: 0.009 | J26: 0.000 | K26: -0.060 | M26: 0.05 | P26: =+$B$26+M26 -> 2.05
C27: 2.00 | D27: 0.25 | E27: 2.04 | F27: 0.013 | G27: 0.023 | H27: 0.006 | I27: 0.010 | J27: -0.012 | K27: -0.059 | M27: 0.04 | P27: 2.04
C28: 2.00 | D28: 0.5 | E28: 2.03 | F28: 0.015 | G28: 0.016 | H28: 0.010 | I28: 0.010 | J28: -0.010 | K28: -0.049 | M28: 0.03 | P28: 2.03
C29: 2.00 | D29: 0.75 | E29: 2.02 | F29: -0.008 | G29: 0.003 | H29: -0.002 | I29: 0.003 | J29: -0.005 | K29: -0.027 | M29: 0.02 | P29: 2.02
C30: 2.00 | D30: 1 | E30: 2.01 | F30: -0.086 | G30: -0.017 | H30: -0.059 | I30: -0.012 | J30: 0.000 | K30: 0.000 | M30: 0.01 | P30: =+$B$26+M30 -> 2.01
B31: 1.75 | C31: 1.75 | D31: 0 | E31: 1.80 | F31: 0.000 | G31: 0.025 | H31: 0.000 | I31: 0.007 | J31: 0.000 | K31: -0.050 | M31: 0.05 | P31: =+$B$31+M31 -> 1.80
C32: 1.75 | D32: 0.25 | E32: 1.79 | F32: 0.012 | G32: 0.022 | H32: 0.005 | I32: 0.008 | J32: -0.010 | K32: -0.052 | M32: 0.04 | P32: 1.79
C33: 1.75 | D33: 0.5 | E33: 1.78 | F33: 0.016 | G33: 0.016 | H33: 0.010 | I33: 0.009 | J33: -0.009 | K33: -0.046 | M33: 0.03 | P33: 1.78
C34: 1.75 | D34: 0.75 | E34: 1.77 | F34: -0.002 | G34: 0.005 | H34: 0.001 | I34: 0.004 | J34: -0.005 | K34: -0.027 | M34: 0.02 | P34: 1.77
C35: 1.75 | D35: 1 | E35: 1.76 | F35: -0.074 | G35: -0.015 | H35: -0.050 | I35: -0.010 | J35: 0.000 | K35: 0.000 | M35: 0.01 | P35: =+$B$31+M35 -> 1.76
B36: 1.50 | C36: 1.50 | D36: 0 | E36: 1.55 | F36: 0.000 | G36: 0.021 | H36: 0.000 | I36: 0.005 | J36: 0.000 | K36: -0.040 | M36: 0.05 | P36: =+$B$36+M36 -> 1.55
C37: 1.50 | D37: 0.25 | E37: 1.54 | F37: 0.008 | G37: 0.020 | H37: 0.004 | I37: 0.007 | J37: -0.009 | K37: -0.044 | M37: 0.04 | P37: 1.54
C38: 1.50 | D38: 0.5 | E38: 1.53 | F38: 0.016 | G38: 0.016 | H38: 0.010 | I38: 0.008 | J38: -0.008 | K38: -0.042 | M38: 0.03 | P38: 1.53
C39: 1.50 | D39: 0.75 | E39: 1.52 | F39: 0.003 | G39: 0.006 | H39: 0.003 | I39: 0.004 | J39: -0.005 | K39: -0.026 | M39: 0.02 | P39: 1.52
C40: 1.50 | D40: 1 | E40: 1.51 | F40: -0.060 | G40: -0.012 | H40: -0.041 | I40: -0.008 | J40: 0.000 | K40: 0.000 | M40: 0.01 | P40: =+$B$36+M40 -> 1.51
B41: 1.25 | C41: 1.25 | D41: 0 | E41: 1.30 | F41: 0.000 | G41: 0.015 | H41: 0.000 | I41: 0.003 | J41: 0.000 | K41: -0.029 | M41: 0.05 | P41: =+$B$41+M41 -> 1.30
C42: 1.25 | D42: 0.25 | E42: 1.29 | F42: 0.005 | G42: 0.015 | H42: 0.002 | I42: 0.005 | J42: -0.007 | K42: -0.034 | M42: 0.04 | P42: 1.29
C43: 1.25 | D43: 0.5 | E43: 1.28 | F43: 0.014 | G43: 0.015 | H43: 0.008 | I43: 0.007 | J43: -0.007 | K43: -0.037 | M43: 0.03 | P43: 1.28
C44: 1.25 | D44: 0.75 | E44: 1.27 | F44: 0.006 | G44: 0.007 | H44: 0.005 | I44: 0.005 | J44: -0.005 | K44: -0.024 | M44: 0.02 | P44: 1.27
C45: 1.25 | D45: 1 | E45: 1.26 | F45: -0.470 | G45: -0.009 | H45: -0.031 | I45: -0.006 | J45: 0.000 | K45: 0.000 | M45: 0.01 | P45: =+$B$41+M45 -> 1.26
B46: 1.00 | C46: 1.00 | D46: 0 | E46: 1.05 | F46: 0.000 | G46: 0.009 | H46: 0.000 | I46: 0.002 | J46: 0.000 | K46: -0.018 | M46: 0.05 | P46: =+$B$46+M46 -> 1.05
C47: 1.00 | D47: 0.25 | E47: 1.04 | F47: 0.002 | G47: 0.011 | H47: 0.000 | I47: 0.003 | J47: -0.005 | K47: -0.023 | M47: 0.04 | P47: 1.04
C48: 1.00 | D48: 0.5 | E48: 1.03 | F48: 0.009 | G48: 0.013 | H48: 0.005 | I48: 0.005 | J48: -0.006 | K48: -0.029 | M48: 0.03 | P48: 1.03
C49: 1.00 | D49: 0.75 | E49: 1.02 | F49: 0.008 | G49: 0.008 | H49: 0.005 | I49: 0.004 | J49: -0.004 | K49: -0.020 | M49: 0.02 | P49: 1.02
C50: 1.00 | D50: 1 | E50: 1.01 | F50: -0.035 | G50: -0.007 | H50: -0.022 | I50: -0.005 | J50: 0.000 | K50: 0.000 | M50: 0.01 | P50: =+$B$46+M50 -> 1.01
B51: 0.75 | C51: 0.75 | D51: 0 | E51: 0.80 | F51: 0.000 | G51: 0.004 | H51: 0.000 | I51: 0.001 | J51: 0.000 | K51: -0.007 | M51: 0.05 | P51: =+$B$51+M51 -> 0.80
C52: 0.75 | D52: 0.25 | E52: 0.79 | F52: 0.001 | G52: 0.008 | H52: 0.000 | I52: 0.002 | J52: -0.002 | K52: -0.011 | M52: 0.04 | P52: 0.79
C53: 0.75 | D53: 0.5 | E53: 0.78 | F53: 0.005 | G53: 0.010 | H53: 0.002 | I53: 0.003 | J53: -0.003 | K53: -0.017 | M53: 0.03 | P53: 0.78
C54: 0.75 | D54: 0.75 | E54: 0.77 | F54: 0.007 | G54: 0.007 | H54: 0.003 | I54: 0.003 | J54: -0.003 | K54: -0.013 | M54: 0.02 | P54: 0.77
C55: 0.76 | D55: 1 | E55: 0.76 | F55: -0.024 | G55: -0.005 | H55: -0.015 | I55: -0.003 | J55: 0.000 | K55: 0.000 | M55: 0.01 | P55: =+$B$51+M55 -> 0.76
B56: 0.50 | C56: 0.55 | D56: 0 | E56: 0.55 | F56: 0.000 | G56: 0.001 | H56: 0.000 | I56: 0.000 | J56: 0.000 | K56: -0.002 | M56: 0.05 | P56: =+$B$56+M56 -> 0.55
C57: 0.54 | D57: 0.25 | E57: 0.54 | F57: 0.000 | G57: 0.005 | H57: 0.000 | I57: 0.001 | J57: -0.001 | K57: -0.004 | M57: 0.04 | P57: 0.54
C58: 0.53 | D58: 0.5 | E58: 0.53 | F58: 0.002 | G58: 0.006 | H58: 0.001 | I58: 0.001 | J58: -0.002 | K58: -0.009 | M58: 0.03 | P58: 0.53
C59: 0.52 | D59: 0.75 | E59: 0.52 | F59: 0.004 | G59: 0.006 | H59: 0.001 | I59: 0.001 | J59: -0.001 | K59: -0.007 | M59: 0.02 | P59: 0.52
C60: 0.51 | D60: 1 | E60: 0.51 | F60: -0.015 | G60: -0.003 | H60: -0.008 | I60: -0.002 | J60: 0.000 | K60: 0.000 | M60: 0.01 | P60: =+$B$56+M60 -> 0.51

Sheet AnexoIV
B1: TABLA N°04 DE DISEÑO PARA RESERVORIOS RECTANGULARES DE C°A° - PCA
C3: y | E3: b/2 | H3: b/2 | J3: y
D5: Articulado | I5: Articulado
D8: Articulado | I8: Articulado | K8: h
F9: x
F11: Articulado
B12: γa*h
B14: b/h | C14: b/h | D14: x/h | F14: y = 0 | H14: y = b/4 | J14: y = b/2
F15: Mx | G15: My | H15: Mx | I15: My | J15: Mx | K15: My
B16: 3.00 | C16: 3.00 | D16: 0 | E16: 3.05 | F16: 0.000 | G16: 0.000 | H16: 0.000 | I16: 0.000 | J16: 0.000 | K16: 0.000 | M16: 0.05 | N16: 3.00 | P16: =+$B$16+M16 -> 3.05
C17: 3.00 | D17: 0.25 | E17: 3.04 | F17: 0.089 | G17: 0.022 | H17: 0.077 | I17: 0.025 | J17: 0.000 | K17: 0.000 | M17: 0.04 | N17: 2.50 | P17: 3.04
C18: 3.00 | D18: 0.5 | E18: 3.03 | F18: 0.118 | G18: 0.029 | H18: 0.101 | I18: 0.034 | J18: 0.000 | K18: 0.000 | M18: 0.03 | N18: 2.00 | P18: 3.03
C19: 3.00 | D19: 0.75 | E19: 3.02 | F19: 0.000 | G19: 0.000 | H19: 0.000 | I19: 0.000 | J19: 0.000 | K19: 0.000 | M19: 0.02 | N19: 1.75 | P19: 3.02
C20: 3.00 | D20: 1 | E20: 3.01 | F20: 0.000 | G20: 0.000 | H20: 0.000 | I20: 0.000 | J20: 0.000 | K20: 0.000 | M20: 0.01 | N20: 1.50 | P20: =+$B$16+M20 -> 3.01
B21: 2.50 | C21: 2.50 | D21: 0 | E21: 2.55 | F21: 0.000 | G21: 0.000 | H21: 0.000 | I21: 0.000 | J21: 0.000 | K21: 0.000 | M21: 0.05 | N21: 1.25 | P21: =+$B$21+M21 -> 2.55
C22: 2.50 | D22: 0.25 | E22: 2.54 | F22: 0.085 | G22: 0.024 | H22: 0.070 | I22: 0.027 | J22: 0.000 | K22: 0.000 | M22: 0.04 | N22: 1.00 | P22: 2.54
C23: 2.50 | D23: 0.5 | E23: 2.53 | F23: 0.112 | G23: 0.032 | H23: 0.092 | I23: 0.037 | J23: 0.000 | K23: 0.000 | M23: 0.03 | N23: 0.75 | P23: 2.53
C24: 2.50 | D24: 0.75 | E24: 2.52 | F24: 0.000 | G24: 0.000 | H24: 0.000 | I24: 0.000 | J24: 0.000 | K24: 0.000 | M24: 0.02 | N24: 0.50 | P24: 2.52
C25: 2.50 | D25: 1 | E25: 2.51 | F25: 0.000 | G25: 0.000 | H25: 0.000 | I25: 0.000 | J25: 0.000 | K25: 0.000 | M25: 0.01 | P25: =+$B$21+M25 -> 2.51
B26: 2.00 | C26: 2.00 | D26: 0 | E26: 2.05 | F26: 0.000 | G26: 0.000 | H26: 0.000 | I26: 0.000 | J26: 0.000 | K26: 0.000 | M26: 0.05 | P26: =+$B$26+M26 -> 2.05
C27: 2.00 | D27: 0.25 | E27: 2.04 | F27: 0.076 | G27: 0.027 | H27: 0.061 | I27: 0.028 | J27: 0.000 | K27: 0.000 | M27: 0.04 | P27: 2.04
C28: 2.00 | D28: 0.5 | E28: 2.03 | F28: 0.100 | G28: 0.037 | H28: 0.078 | I28: 0.038 | J28: 0.000 | K28: 0.000 | M28: 0.03 | P28: 2.03
C29: 2.00 | D29: 0.75 | E29: 2.02 | F29: 0.000 | G29: 0.000 | H29: 0.000 | I29: 0.000 | J29: 0.000 | K29: 0.000 | M29: 0.02 | P29: 2.02
C30: 2.00 | D30: 1 | E30: 2.01 | F30: 0.000 | G30: 0.000 | H30: 0.000 | I30: 0.000 | J30: 0.000 | K30: 0.000 | M30: 0.01 | P30: =+$B$26+M30 -> 2.01
B31: 1.75 | C31: 1.75 | D31: 0 | E31: 1.80 | F31: 0.000 | G31: 0.000 | H31: 0.000 | I31: 0.000 | J31: 0.000 | K31: 0.000 | M31: 0.05 | P31: =+$B$31+M31 -> 1.80
C32: 1.75 | D32: 0.25 | E32: 1.79 | F32: 0.070 | G32: 0.029 | H32: 0.054 | I32: 0.029 | J32: 0.000 | K32: 0.000 | M32: 0.04 | P32: 1.79
C33: 1.75 | D33: 0.5 | E33: 1.78 | F33: 0.091 | G33: 0.040 | H33: 0.070 | I33: 0.039 | J33: 0.000 | K33: 0.000 | M33: 0.03 | P33: 1.78
C34: 1.75 | D34: 0.75 | E34: 1.77 | F34: 0.000 | G34: 0.000 | H34: 0.000 | I34: 0.000 | J34: 0.000 | K34: 0.000 | M34: 0.02 | P34: 1.77
C35: 1.75 | D35: 1 | E35: 1.76 | F35: 0.000 | G35: 0.000 | H35: 0.000 | I35: 0.000 | J35: 0.000 | K35: 0.000 | M35: 0.01 | P35: =+$B$31+M35 -> 1.76
B36: 1.50 | C36: 1.50 | D36: 0 | E36: 1.55 | F36: 0.000 | G36: 0.000 | H36: 0.000 | I36: 0.000 | J36: 0.000 | K36: 0.000 | M36: 0.05 | P36: =+$B$36+M36 -> 1.55
C37: 1.50 | D37: 0.25 | E37: 1.54 | F37: 0.061 | G37: 0.031 | H37: 0.047 | I37: 0.029 | J37: 0.000 | K37: 0.000 | M37: 0.04 | P37: 1.54
C38: 1.50 | D38: 0.5 | E38: 1.53 | F38: 0.078 | G38: 0.043 | H38: 0.059 | I38: 0.040 | J38: 0.000 | K38: 0.000 | M38: 0.03 | P38: 1.53
C39: 1.50 | D39: 0.75 | E39: 1.52 | F39: 0.000 | G39: 0.000 | H39: 0.000 | I39: 0.000 | J39: 0.000 | K39: 0.000 | M39: 0.02 | P39: 1.52
C40: 1.50 | D40: 1 | E40: 1.51 | F40: 0.000 | G40: 0.000 | H40: 0.000 | I40: 0.000 | J40: 0.000 | K40: 0.000 | M40: 0.01 | P40: =+$B$36+M40 -> 1.51
B41: 1.25 | C41: 1.25 | D41: 0 | E41: 1.30 | F41: 0.000 | G41: 0.000 | H41: 0.000 | I41: 0.000 | J41: 0.000 | K41: 0.000 | M41: 0.05 | P41: =+$B$41+M41 -> 1.30
C42: 1.25 | D42: 0.25 | E42: 1.29 | F42: 0.049 | G42: 0.033 | H42: 0.038 | I42: 0.029 | J42: 0.000 | K42: 0.000 | M42: 0.04 | P42: 1.29
C43: 1.25 | D43: 0.5 | E43: 1.28 | F43: 0.063 | G43: 0.044 | H43: 0.047 | I43: 0.039 | J43: 0.000 | K43: 0.000 | M43: 0.03 | P43: 1.28
C44: 1.25 | D44: 0.75 | E44: 1.27 | F44: 0.000 | G44: 0.000 | H44: 0.000 | I44: 0.000 | J44: 0.000 | K44: 0.000 | M44: 0.02 | P44: 1.27
C45: 1.25 | D45: 1 | E45: 1.26 | F45: 0.000 | G45: 0.000 | H45: 0.000 | I45: 0.000 | J45: 0.000 | K45: 0.000 | M45: 0.01 | P45: =+$B$41+M45 -> 1.26
B46: 1.00 | C46: 1.00 | D46: 0 | E46: 1.05 | F46: 0.000 | G46: 0.000 | H46: 0.000 | I46: 0.000 | J46: 0.000 | K46: 0.000 | M46: 0.05 | P46: =+$B$46+M46 -> 1.05
C47: 1.00 | D47: 0.25 | E47: 1.04 | F47: 0.036 | G47: 0.033 | H47: 0.027 | I47: 0.027 | J47: 0.000 | K47: 0.000 | M47: 0.04 | P47: 1.04
C48: 1.00 | D48: 0.5 | E48: 1.03 | F48: 0.044 | G48: 0.044 | H48: 0.033 | I48: 0.036 | J48: 0.000 | K48: 0.000 | M48: 0.03 | P48: 1.03
C49: 1.00 | D49: 0.75 | E49: 1.02 | F49: 0.000 | G49: 0.000 | H49: 0.000 | I49: 0.000 | J49: 0.000 | K49: 0.000 | M49: 0.02 | P49: 1.02
C50: 1.00 | D50: 1 | E50: 1.01 | F50: 0.000 | G50: 0.000 | H50: 0.000 | I50: 0.000 | J50: 0.000 | K50: 0.000 | M50: 0.01 | P50: =+$B$46+M50 -> 1.01
B51: 0.75 | C51: 0.75 | D51: 0 | E51: 0.80 | F51: 0.000 | G51: 0.000 | H51: 0.000 | I51: 0.000 | J51: 0.000 | K51: 0.000 | M51: 0.05 | P51: =+$B$51+M51 -> 0.80
C52: 0.75 | D52: 0.25 | E52: 0.79 | F52: 0.022 | G52: 0.029 | H52: 0.016 | I52: 0.023 | J52: 0.000 | K52: 0.000 | M52: 0.04 | P52: 0.79
C53: 0.75 | D53: 0.5 | E53: 0.78 | F53: 0.025 | G53: 0.038 | H53: 0.018 | I53: 0.030 | J53: 0.000 | K53: 0.000 | M53: 0.03 | P53: 0.78
C54: 0.75 | D54: 0.75 | E54: 0.77 | F54: 0.000 | G54: 0.000 | H54: 0.000 | I54: 0.000 | J54: 0.000 | K54: 0.000 | M54: 0.02 | P54: 0.77
C55: 0.76 | D55: 1 | E55: 0.76 | F55: 0.000 | G55: 0.000 | H55: 0.000 | I55: 0.000 | J55: 0.000 | K55: 0.000 | M55: 0.01 | P55: =+$B$51+M55 -> 0.76
B56: 0.50 | C56: 0.55 | D56: 0 | E56: 0.55 | F56: 0.000 | G56: 0.000 | H56: 0.000 | I56: 0.000 | J56: 0.000 | K56: 0.000 | M56: 0.05 | P56: =+$B$56+M56 -> 0.55
C57: 0.54 | D57: 0.25 | E57: 0.54 | F57: 0.010 | G57: 0.020 | H57: 0.007 | I57: 0.015 | J57: 0.000 | K57: 0.000 | M57: 0.04 | P57: 0.54
C58: 0.53 | D58: 0.5 | E58: 0.53 | F58: 0.009 | G58: 0.025 | H58: 0.007 | I58: 0.019 | J58: 0.000 | K58: 0.000 | M58: 0.03 | P58: 0.53
C59: 0.52 | D59: 0.75 | E59: 0.52 | F59: 0.000 | G59: 0.000 | H59: 0.000 | I59: 0.000 | J59: 0.000 | K59: 0.000 | M59: 0.02 | P59: 0.52
C60: 0.51 | D60: 1 | E60: 0.51 | F60: 0.000 | G60: 0.000 | H60: 0.000 | I60: 0.000 | J60: 0.000 | K60: 0.000 | M60: 0.01 | P60: =+$B$56+M60 -> 0.51

Sheet AnexoV
C1: TABLA N°05 DE DISEÑO PARA RESERVORIOS RECTANGULARES DE C°A° - PCA
M2: b/h = 1/2 | N2: b/h = 1 | O2: b/h = 2 | P2: b/h = inf | Q2: h
C3: y | E3: b/2 | H3: b/2 | J3: y | M3: 0.0000 | N3: 0.0000 | O3: 0.0000 | P3: 0.0000 | Q3: 0.00
M4: 0.1280 | N4: 0.2582 | O4: 0.3604 | P4: 0.3912 | Q4: 0.50
C5: // | D5: Articulado | I5: Articulado | J5: \\ | M5: 0.1736 | N5: 0.3113 | O5: 0.4023 | P5: 0.4118 | Q5: =1-1/3 -> 0.67
C6: // | J6: \\ | M6: 0.1919 | N6: 0.3153 | O6: 0.3904 | P6: 0.3980 | Q6: =1-1/4 -> 0.75
C7: // | J7: \\ | M7: 0.0000 | N7: 0.0000 | O7: 0.0000 | P7: 0.0000 | Q7: 1.00
C8: // | D8: Empotrado | I8: Empotrado | J8: \\ h
C9: // | F9: x | J9: \\ | M9: b/h = 1/2 | N9: b/h = 1 | O9: b/h = 2 | P9: b/h = inf | Q9: h
C10: // | J10: \\ | M10: TRUE | N10: TRUE | O10: TRUE | P10: TRUE
C11: // | F11: Articulado | J11: \\ | M11: =IF(M$10,M3,NA()) -> 0.0000 | N11: 0.0000 | O11: 0.0000 | P11: 0.0000 | Q11: 0.00
B12: γa*h | M12: 0.1280 | N12: 0.2582 | O12: 0.3604 | P12: 0.3912 | Q12: 0.50
M13: 0.1736 | N13: 0.3113 | O13: 0.4023 | P13: 0.4118 | Q13: =1-1/3 -> 0.67
B14: b/h | E14: 0.5 | F14: 1 | G14: 2 | H14: 5 | I14: 10 | J14: Infinito | M14: 0.1919 | N14: 0.3153 | O14: 0.3904 | P14: 0.3980 | Q14: =1-1/4 -> 0.75
B15: Centro de la base | E15: 0.1407wh2 | F15: 0.2419wh2 | G15: 0.3290wh2 | J15: 0.3333wh2 | M15: 0.0000 | N15: 0.0000 | O15: 0.0000 | P15: 0.0000 | Q15: 1.00
B16: Vértice de la base | E16: -0.2575wh2 | F16: -0.4397wh2 | G16: -0.5833wh2 | J16: -0.6000wh2
B17: Centro del lado empotrado | E17: 0.1280wh2 | F17: 0.2582wh2 | G17: 0.3604wh2 | J17: 0.3912wh2
B18: Tercio inferior del lado empotrado | E18: 0.1736wh2 | F18: 0.3113wh2 | G18: 0.4023wh2 | J18: 0.4118wh2
B19: Cuarto inferior del lado empotrado | E19: 0.1919wh2 | F19: 0.3153wh2 | G19: 0.3904wh2 | J19: 0.3980wh2 | M19: b | N19: b/h = 1/2 | O19: b/h = 1 | P19: b/h = 2 | Q19: b/h = inf
B20: Total en el borde superior | E20: 0.0000wh2b | F20: 0.0052wh2b | G20: 0.0538wh2b | H20: 0.1203wh2b | I20: 0.1435wh2b | J20: 0.1667wh2b | M20: 0.00 | N20: -0.2575 | O20: -0.4397 | P20: -0.5833 | Q20: -0.6000
B21: Total en el borde inferior | E21: 0.0480wh2b | F21: 0.0960wh2b | G21: 0.1818wh2b | H21: 0.2715wh2b | I21: 0.3023wh2b | J21: 0.3333wh2b | M21: 0.50 | N21: 0.1407 | O21: 0.2419 | P21: 0.3290 | Q21: 0.3333
B22: Total de un lado empotrado | E22: 0.2260wh2b | F22: 0.1994wh2b | G22: 0.1322wh2b | H22: 0.0541wh2b | I22: 0.0271wh2b | J22: 0.2750wh2b | M22: 1.00 | N22: -0.2575 | O22: -0.4397 | P22: -0.5833 | Q22: -0.6000
B23: Total de los 4 bordes | E23: 0.5000wh2b | F23: 0.5000wh2b | G23: 0.5000wh2b | H23: 0.5000wh2b | I23: 0.5000wh2b | J23: 0.5000wh2b
M24: b | N24: b/h = 1/2 | O24: b/h = 1 | P24: b/h = 2 | Q24: b/h = inf
N25: TRUE | O25: TRUE | P25: TRUE | Q25: TRUE
M26: 0.00 | N26: =IF(N$25,N20,NA()) -> -0.2575 | O26: -0.4397 | P26: -0.5833 | Q26: -0.6000
M27: 0.50 | N27: 0.1407 | O27: 0.2419 | P27: 0.3290 | Q27: 0.3333
M28: 1.00 | N28: -0.2575 | O28: -0.4397 | P28: -0.5833 | Q28: -0.6000

Sheet AnexoVI
C1: TABLA N°06 DE DISEÑO PARA RESERVORIOS RECTANGULARES DE C°A° - PCA
M2: b/h = 1/2 | N2: b/h = 1 | O2: b/h = 2 | P2: b/h = 3 | Q2: h
C3: y | E3: b/2 | H3: b/2 | J3: y | M3: 0.0000 | N3: 0.0100 | O3: 0.1000 | P3: 0.1650 | Q3: 0.00
M4: 0.1280 | N4: 0.2580 | O4: 0.3750 | P4: 0.4060 | Q4: 0.50
C5: // | D5: Libre | I5: Libre | J5: \\ | M5: 0.1740 | N5: 0.3110 | O5: 0.4060 | P5: 0.4160 | Q5: =1-1/3 -> 0.67
C6: // | J6: \\ | M6: 0.1920 | N6: 0.3150 | O6: 0.3900 | P6: 0.3980 | Q6: =1-1/4 -> 0.75
C7: // | J7: \\ | M7: 0.0000 | N7: 0.0000 | O7: 0.0000 | P7: 0.0000 | Q7: 1.00
C8: // | D8: Empotrado | I8: Empotrado | J8: \\ h
C9: // | F9: x | J9: \\ | M9: b/h = 1/2 | N9: b/h = 1 | O9: b/h = 2 | P9: b/h = 3 | Q9: h
C10: // | J10: \\ | M10: FALSE | N10: TRUE | O10: TRUE | P10: TRUE
C11: // | F11: Articulado | J11: \\ | M11: =IF(M$10,M3,NA()) ->  | N11: 0.0100 | O11: 0.1000 | P11: 0.1650 | Q11: 0.00
B12: γa*h | N12: 0.2580 | O12: 0.3750 | P12: 0.4060 | Q12: 0.50
N13: 0.3110 | O13: 0.4060 | P13: 0.4160 | Q13: =1-1/3 -> 0.67
C14: b/h | F14: 0.5 | G14: 1 | H14: 2 | I14: 3 | N14: 0.3150 | O14: 0.3900 | P14: 0.3980 | Q14: =1-1/4 -> 0.75
C15: Centro de la base | F15: 0.141wh2 | G15: 0.242wh2 | H15: 0.380wh2 | I15: 0.450wh2 | N15: 0.0000 | O15: 0.0000 | P15: 0.0000 | Q15: 1.00
C16: Vértice de la base | F16: -0.258wh2 | G16: -0.440wh2 | H16: -0.583wh2 | I16: -0.590wh2
C17: Tope inferior del lado empotrado | F17: 0.000wh2 | G17: 0.010wh2 | H17: 0.100wh2 | I17: 0.165wh2
C18: Centro del lado empotrado | F18: 0.128wh2 | G18: 0.258wh2 | H18: 0.375wh2 | I18: 0.406wh2
C19: Tercio inferior del lado empotrado | F19: 0.174wh2 | G19: 0.311wh2 | H19: 0.406wh2 | I19: 0.416wh2 | M19: b | N19: b/h = 1/2 | O19: b/h = 1 | P19: b/h = 2 | Q19: b/h = 3
C20: Cuarto inferior del lado empotrado | F20: 0.192wh2b | G20: 0.315wh2b | H20: 0.390wh2b | I20: 0.398wh2b | M20: 0.00 | N20: -0.2580 | O20: -0.4400 | P20: -0.5830 | Q20: -0.5900
C21: Total en el lado inferior | F21: 0.048wh2b | G21: 0.096wh2b | H21: 0.204wh2b | I21: 0.286wh2b | M21: 0.50 | N21: 0.1410 | O21: 0.2420 | P21: 0.3800 | Q21: 0.4500
C22: Total de un lado empotrado | F22: 0.226wh2b | G22: 0.202wh2b | H22: 0.148wh2b | I22: 0.107wh2b | M22: 1.00 | N22: -0.2580 | O22: -0.4400 | P22: -0.5830 | Q22: -0.5900
C23: Total de los 4 bordes | F23: 0.500wh2b | G23: 0.500wh2b | H23: 0.500wh2b | I23: 0.500wh2b
M24: b | N24: b/h = 1/2 | O24: b/h = 1 | P24: b/h = 2 | Q24: b/h = 3
N25: TRUE | O25: TRUE | P25: TRUE | Q25: TRUE
M26: 0.00 | N26: =IF(N$25,N20,NA()) -> -0.2580 | O26: -0.4400 | P26: -0.5830 | Q26: -0.5900
M27: 0.50 | N27: 0.1410 | O27: 0.2420 | P27: 0.3800 | Q27: 0.4500
M28: 1.00 | N28: -0.2580 | O28: -0.4400 | P28: -0.5830 | Q28: -0.5900
